Cogmind - Beta 16 @@@ ROGUE MODE // 2026.01.04 @ 18:49:32 Player: PE-P51 Result: Self-destructed Performance ------------- Evolutions (7) 3500 Regions Visited (29) 5800 Robots Destroyed (383) 1915 Value Destroyed (11307) 11307 Prototype IDs (52) 1040 Alien Tech Used (4) 800 Bonus (11904) 11904 TOTAL SCORE: 36266 Bonus ------- Triggered High Security 500 High Alert Combat Kills 737 Follower Combat Kills 3384 Network Hubs Disabled 200 Met Zhirov 300 Built Enhanced Grunts 300 Met R17 at Cetus 500 Found Hidden Lab 3000 Used Core Reset Matrix 3000 Friendly Fire -17 Cogmind --------- Core Integrity 815/1300 Matter 111/300 Energy 150/150 System Corruption 0% Temperature Cool (12) Movement Core (150) Ox2 Location -3/Research Parts ------- > --- POWER (1) -------- Micro Antimatter Reactor > --- PROPULSION (8) --- (None) > --- UTILITY (10) ----- Advanced Signal Interpreter Experimental Terrain Scan Processor Improved Targeting Computer Improved Target Analyzer Improved Hacking Suite Quantum Router > --- WEAPON (3) ------- (None) > --- INVENTORY (5) ---- Fusion Bomb Launcher Peak State ------------ > --- POWER ------------ Light Antimatter Reactor > --- PROPULSION ------- Biomechanical Wings Impulse Thruster Impulse Thruster Field Propulsion Array Field Propulsion Array > --- UTILITY ---------- Advanced Signal Interpreter Experimental Terrain Scan Processor Quantum Capacitor Advanced Reaction Control System Improved Hacking Suite System Shield Advanced System Shield Improved System Guard > --- WEAPON ----------- Enhanced Gauss Cannon Kinetic Spear > --- INVENTORY -------- Light Antimatter Reactor Improved Transmission Jammer Transdimensional Reconstructor Hypervelocity Gauss Cannon Fusion Bomb Launcher [Rating: 127] Favorites ----------- Power Improved Ion Engine Engine Improved Ion Engine Power Core Light Nuclear Core Reactor Cold Fusion Reactor Propulsion Improved VTOL Module Treads Light Treads Leg Aluminum Leg Flight Unit Improved VTOL Module Utility Hacking Suite Device Advanced Weight Redist. System Storage Huge Storage Unit Processor Transport Network Coupler Hackware Hacking Suite Protection Hardened Medium Armor Plating Weapon Cooled Particle Cannon Energy Gun Medium Laser Energy Cannon Cooled Particle Cannon Ballistic Gun Improved Assault Rifle Ballistic Cannon Hypervelocity Gauss Cannon Launcher Mini Grenade Launcher Special Weapon Remote Datajack Slashing Weapon Chainsword Piercing Weapon Spear Special Melee Weapon Improved Datajack Build | -11 -10 -9 -8 -8 -7 -7 -7 -7 -7 -7 -6 -6 -6 -6 -6 -6 -6 -6 -5 -5 -5 -5 -5 -5 -4 -4 -4 -4 -3 ------- Run | Yrd Mat Mat Mat Sto Fac Was Fac Low Low Zio Pro Fac Was Fac Ext Cet Arc Hub Fac Was Fac Upp Upp Zhi Pro Fac Arm Lab Res Slots Evolved 14 | . . 2 2 . 2 . . . . . . 2 . . . . . . 2 . . . . . . 2 . . 2 Power . | . . . . . . . . . . . . . . . . . . . . . . . . . . . . . . Propulsion 6 | . . . 1 . 1 . . . . . . . . . . . . . 1 . . . . . . 2 . . 1 Utility 8 | . . 2 1 . 1 . . . . . . 2 . . . . . . 1 . . . . . . . . . 1 Weapon . | . . . . . . . . . . . . . . . . . . . . . . . . . . . . . . Parts Attached 262 | . 13 34 38 15 21 . 7 1 2 7 1 9 1 7 8 4 6 6 11 4 12 2 8 3 2 23 12 4 1 Power 28 | . 2 4 3 4 1 . 1 . . . . 1 . . 1 . . . 1 1 1 . 1 1 . 3 2 . 1 Engine 11 | . 1 4 3 1 1 . . . . . . . . . 1 . . . . . . . . . . . . . . Core 8 | . 1 . . 2 . . 1 . . . . . . . . . . . . . 1 . 1 . . 2 . . . Reactor 9 | . . . . 1 . . . . . . . 1 . . . . . . 1 1 . . . 1 . 1 2 . 1 Propulsion 70 | . 5 11 15 7 6 . . . . . . 3 . 2 . . . 3 2 1 3 1 . . 1 8 2 . . Treads 29 | . . 10 13 6 . . . . . . . . . . . . . . . . . . . . . . . . . Leg 6 | . 5 1 . . . . . . . . . . . . . . . . . . . . . . . . . . . Wheel . | . . . . . . . . . . . . . . . . . . . . . . . . . . . . . . Hover . | . . . . . . . . . . . . . . . . . . . . . . . . . . . . . . Flight 35 | . . . 2 1 6 . . . . . . 3 . 2 . . . 3 2 1 3 1 . . 1 8 2 . . Utility 108 | . 4 11 11 2 10 . 3 . . 7 1 4 1 5 6 2 6 1 7 1 5 1 4 2 . 8 4 2 . Device 40 | . 2 4 3 2 3 . 2 . . . . 3 1 3 2 . . . 3 1 3 . . 1 . 5 2 . . Storage 3 | . 1 2 . . . . . . . . . . . . . . . . . . . . . . . . . . . Processor 24 | . . 2 2 . 1 . . . . 5 . . . 1 2 2 . . 1 . 2 . 2 . . 2 2 . . Hackware 23 | . . . . . 6 . 1 . . 2 1 1 . 1 . . 6 . 2 . . . 1 . . 1 . 1 . Protection 18 | . 1 3 6 . . . . . . . . . . . 2 . . 1 1 . . 1 1 1 . . . 1 . Artifact . | . . . . . . . . . . . . . . . . . . . . . . . . . . . . . . Weapon 56 | . 2 8 9 2 4 . 3 1 2 . . 1 . . 1 2 . 2 1 1 3 . 3 . 1 4 4 2 . Energy Gun 5 | . 1 . . . . . . . . . . . . . . 1 . . . 1 . . . . 1 . . 1 . Energy Cannon 7 | . 1 1 3 . . . . 1 . . . . . . . . . . . . . . . . . . . 1 . Ballistic Gun 14 | . . 4 5 . . . . . . . . . . . 1 1 . . . . 1 . 1 . . . 1 . . Ballistic Cannon 13 | . . 2 . 1 . . . . 2 . . . . . . . . 2 . . 1 . 1 . . 2 2 . . Launcher 5 | . . 1 . 1 1 . . . . . . . . . . . . . . . . . 1 . . . 1 . . Special Weapon 2 | . . . 1 . . . 1 . . . . . . . . . . . . . . . . . . . . . . Impact Weapon . | . . . . . . . . . . . . . . . . . . . . . . . . . . . . . . Slashing Weapon 2 | . . . . . 2 . . . . . . . . . . . . . . . . . . . . . . . . Piercing Weapon 3 | . . . . . . . 1 . . . . 1 . . . . . . 1 . . . . . . . . . . Special Melee Weapon 5 | . . . . . 1 . 1 . . . . . . . . . . . . . 1 . . . . 2 . . . Unidentified Prototypes 34 | . . 2 2 4 . . . . . 6 . 1 1 1 . 2 . 1 1 . 2 . . 4 . 1 1 5 . Corrupted Parts 2 | . . . . . . . . . . . . . . . . . . . . 2 . . . . . . . . . System Corruption 12 | . . . . . . . . . . . . . . . . . . . . 12 . . . . . . . . . Parts Lost 90 | . 4 4 20 2 1 . 1 . . . 2 . . 1 6 . . 3 . 5 4 4 1 . 4 8 9 5 6 Power 7 | . 1 . 1 . . . . . . . . . . . 1 . . . . 1 . . 1 . . 1 . 1 . Propulsion 27 | . 1 . 8 . . . . . . . . . . . . . . 1 . 2 1 1 . . 3 4 2 3 1 Utility 37 | . 1 3 6 2 . . . . . . 2 . . 1 5 . . 2 . 1 2 3 . . . 1 5 . 3 Weapon 19 | . 1 1 5 . 1 . 1 . . . . . . . . . . . . 1 1 . . . 1 2 2 1 2 Highest Loss Streak 9 | . 2 1 9 1 1 . 1 . . . 1 . . 1 3 . . 1 . 5 2 4 1 . 2 2 5 5 4 To Critical Strikes . | . . . . . . . . . . . . . . . . . . . . . . . . . . . . . . Average Backups 13 | 6 8 19 24 24 5 5 4 5 5 5 4 4 4 4 4 5 5 5 4 4 4 4 4 5 4 4 4 4 3 Power 1 | 1 . 1 3 4 1 1 1 1 1 . . . . . . . . . . . . . . . . . 1 1 . Propulsion 3 | 4 3 8 6 6 . 1 1 1 1 . . . . . . . . . . . . . . . . . . . . Utility 2 | . . 2 6 6 . . . . . . 1 1 1 . 1 2 2 2 1 1 . . . 1 1 . 1 1 . Weapon 4 | 1 3 6 6 6 2 3 2 3 2 3 2 2 3 2 2 3 3 2 2 2 3 3 3 3 1 2 1 1 2 Tool/Special . | . . . . . . . . . . . . . . . . . . . . . . . . . . . . . . Unused Backups 41 | . 5 7 12 4 5 . 1 . . . . 1 1 1 . . . . 1 . . . . 1 . 1 . 1 . Power 5 | . 1 . . 1 2 . . . . . . . . . . . . . . . . . . . . . . 1 . Propulsion 14 | . 1 5 5 2 . . . . . . . . 1 . . . . . . . . . . . . . . . . Utility 8 | . 2 . . . 2 . . . . . . 1 . 1 . . . . 1 . . . . 1 . . . . . Weapon 14 | . 1 2 7 1 1 . 1 . . . . . . . . . . . . . . . . . . 1 . . . Tool/Special . | . . . . . . . . . . . . . . . . . . . . . . . . . . . . . . Average Slot Usage (%) 94 | . 95 95 96 98 98 100 99 100 100 100 97 97 100 98 97 100 100 93 96 76 90 87 90 94 86 79 84 57 40 Engine 5 | . 12 10 8 6 2 7 2 . . . . . . . 2 6 6 6 . . . . . . . . . . . Core 1 | . 1 . . 2 4 . 4 7 7 6 . . . . . . . . . . . . . 3 . 2 . . . Reactor 1 | . . . . . . . . . . . 7 5 6 6 3 . . . 4 4 5 5 4 1 5 2 5 4 . Treads 10 | . . 19 26 26 . . . . . . . . . . . . . . . . . . . . . . . . . Leg 1 | . 27 2 . . . . . . . . . . . . . . . . . . . . . . . . . . . Flight 12 | . . . . . 29 30 29 30 30 30 30 25 26 25 26 26 26 24 27 21 25 22 23 23 19 18 24 13 1 Device 10 | . 9 9 7 8 10 15 14 15 15 9 2 11 13 12 10 6 6 6 10 7 18 18 11 11 11 11 13 5 7 Storage 5 | . 14 11 9 9 . . . . . . . . . . . . . . . . . . . . . . . . . Processor 11 | . . 9 16 16 7 7 7 7 7 7 7 6 6 6 9 20 16 6 7 11 16 21 23 23 23 17 17 20 18 Hackware 11 | . . . . . 24 23 23 23 23 28 32 33 33 33 27 20 23 29 26 18 11 5 7 11 11 14 12 7 9 Protection 5 | . 1 9 9 10 . . . . . . . . . . 2 6 6 4 2 1 . 1 5 4 5 . . 2 2 Energy Cannon 4 | . 8 . 11 17 3 . . 3 6 . . . . 1 . . . . . . . . . . . . . . 1 Ballistic Gun 5 | . 5 20 5 . . . . . . . . . . . . . . . . . 1 . . . . . . . . Ballistic Cannon 1 | . . . . . . . . . . . . 1 . . 5 5 1 5 5 1 1 5 4 1 1 5 6 2 . Piercing Weapon 1 | . . . . . . . . 3 4 7 7 5 5 5 . . 4 . 4 5 4 4 5 5 5 1 . . . Special Melee Weapon 1 | . . . . . 2 7 6 7 1 7 1 3 6 4 4 6 6 5 . . . . . 3 . . . . . Peak Build Rating 127 | 6 10 21 39 41 51 47 49 49 51 55 55 69 75 79 77 64 73 75 95 94 106 105 99 94 94 122 127 99 73 Average Rating 48 | 6 7 18 31 37 45 46 47 48 49 48 53 62 70 71 68 62 66 69 89 77 97 96 93 89 86 96 114 78 61 On Entrance 61 | 6 6 6 19 36 38 46 47 48 49 50 55 54 69 69 72 62 63 73 67 94 93 105 87 87 92 75 121 82 66 Avg Prop Armor Cover (%) 2 | . 17 . . . . . 3 . . . . . . . . . . . . . . . . . . 2 . . . Naked Turns . | . . . . . . . . . . . . . . . . . . . . . . . . . . . . . . Heaviest Build 117 | 11 31 108 117 116 116 11 14 16 17 15 16 25 16 24 31 26 26 26 29 33 39 39 35 33 27 35 41 34 18 Greatest Support 60 | 20 20 40 60 60 60 20 20 20 20 20 20 29 32 32 32 32 32 32 40 37 40 40 39 30 30 59 59 41 24 Greatest Overweight (x) 30 | . 5 2 30 2 1 . . . . . . 1 . 1 1 . . . . . . 1 4 3 1 1 . . 5 Average Overweight (x) . | . . 1 1 1 . . . . . . . . . . . . . . . . . . . . . . . . . Largest Inventory Capacity 25 | 8 15 25 25 25 25 5 5 5 5 5 5 5 5 5 5 5 5 5 5 5 5 5 5 5 5 5 5 5 5 Average Capacity 13 | 8 8 20 25 25 5 5 5 5 5 5 5 5 5 5 5 5 5 5 5 5 5 5 5 5 5 5 5 5 5 Most Carried 25 | 6 11 25 25 25 25 5 5 5 5 5 5 5 5 5 5 5 5 5 5 5 5 5 5 5 5 5 5 5 5 Average Carried 13 | 6 8 19 24 24 5 4 4 5 5 4 4 4 4 4 4 5 5 5 4 4 4 4 4 4 4 4 4 4 3 Final Capacity 25 | 8 15 25 25 25 5 5 5 5 5 5 5 5 5 5 5 5 5 5 5 5 5 5 5 5 5 5 5 5 5 Final Carried 25 | 6 11 25 25 25 5 5 5 5 5 5 4 5 5 5 5 5 5 5 5 5 4 4 5 5 5 5 4 5 1 Class Distribution -------------------- 36% | Scavenger-Mutant 31% | Hacker-Sprinter 14% | Mutant 8% | Hacker-Mutant 3% | Wizard-Sprinter Dominant Class ---------------- Mutant | -10/Materials Scavenger-Mutant | -9/Materials Scavenger-Mutant | -8/Materials Scavenger-Mutant | -8/Storage Hacker-Sprinter | -7/Factory Hacker-Sprinter | -7/Waste Hacker-Sprinter | -7/Factory Hacker-Sprinter | -7/Lower Caves Hacker-Sprinter | -7/Lower Caves Hacker-Sprinter | -7/Zion Hacker-Sprinter | -6/Proximity Caves Hacker-Sprinter | -6/Factory Hacker-Sprinter | -6/Waste Hacker-Sprinter | -6/Factory Hacker-Sprinter | -6/Extension Commander-Sprinter | -6/Cetus Commander-Sprinter | -6/Archives Wizard-Sprinter | -6/Hub_04(d) Wizard-Sprinter | -5/Factory Hacker-Mutant | -5/Waste Hacker-Sprinter | -5/Factory Sprinter | -5/Upper Caves Hacker-Sprinter | -5/Upper Caves Hacker-Sprinter | -5/Zhirov Hacker-Sprinter | -4/Proximity Caves Hacker-Mutant | -4/Factory Commander-Sprinter | -4/Armory Hacker-Mutant | -4/Lab Hacker-Mutant | -3/Research Resources | -11 -10 -9 -8 -8 -7 -7 -7 -7 -7 -7 -6 -6 -6 -6 -6 -6 -6 -6 -5 -5 -5 -5 -5 -5 -4 -4 -4 -4 -3 ----------- Run | Yrd Mat Mat Mat Sto Fac Was Fac Low Low Zio Pro Fac Was Fac Ext Cet Arc Hub Fac Was Fac Upp Upp Zhi Pro Fac Arm Lab Res Matter Collected 10650 | 200 164 1526 975 303 404 . 240 37 143 10 113 373 82 108 456 254 166 1361 489 . 487 119 162 . 165 997 1221 . 95 Remotely . | . . . . . . . . . . . . . . . . . . . . . . . . . . . . . . Salvage Created 15549 | . 714 2340 1892 2195 738 . 306 . 31 . 123 462 161 254 431 289 318 1537 507 . 694 362 412 . 186 1050 452 . 95 Parts 860 | . 32 149 123 111 60 . 29 . . . 11 28 . 16 28 15 23 59 29 . 35 11 8 . 15 51 23 . 4 Haulers Intercepted 29 | . 2 5 5 6 4 . . . . . . . . . . . . 4 1 . 1 . . . . 1 . . . Recyclers Shooed 6 | . 1 2 1 . . . . . . . . . . . 1 . . . 1 . . . . . . . . . . Parts Field Recycled . | . . . . . . . . . . . . . . . . . . . . . . . . . . . . . . Retrieved Matter . | . . . . . . . . . . . . . . . . . . . . . . . . . . . . . . Parts Self-Destructed 37 | . . . . . . . . . 5 . 9 . . . . . . . . . . 8 4 . 11 . . . . Prevented . | . . . . . . . . . . . . . . . . . . . . . . . . . . . . . . Parts Restored 2 | . . . . . . . . . . . . . . . . . . . 1 . 1 . . . . . . . . Broken 2 | . . . . . . . . . . . . . . . . . . . 1 . 1 . . . . . . . . Kills | -11 -10 -9 -8 -8 -7 -7 -7 -7 -7 -7 -6 -6 -6 -6 -6 -6 -6 -6 -5 -5 -5 -5 -5 -5 -4 -4 -4 -4 -3 ------- Run | Yrd Mat Mat Mat Sto Fac Was Fac Low Low Zio Pro Fac Was Fac Ext Cet Arc Hub Fac Was Fac Upp Upp Zhi Pro Fac Arm Lab Res Combat Hostiles Destroyed 223 | . 14 43 33 41 8 . 2 . 1 . 5 5 1 . 7 5 1 8 . . 6 1 5 . 5 18 13 . 1 Melee 12 | . . . . . 1 . 2 . 1 . . 2 . . . . . . . . 1 1 . . 1 3 . . . Guns 58 | . 9 29 20 . . . . . . . . . . . . . . . . . . . . . . . . . . Cannons 88 | . 4 3 6 36 . . . . . . 1 . 1 . 4 5 1 8 . . 1 . . . . 10 7 . 1 AOE 63 | . . 11 7 4 7 . . . . . 4 3 . . 3 . . . . . 4 . 5 . 4 5 6 . . Classes Destroyed 24 | . 6 6 3 2 1 . . . 1 . 1 1 1 . . . . . . . . 1 . . . . 1 . . Worker 38 | . . 3 1 2 6 . 3 . . . . 5 . 3 . . . 6 2 . 4 . . . . 3 . . . Builder 24 | . . 2 1 3 1 . . . . . . 3 . 1 3 . . 4 4 . 1 . . . . 1 . . . Tunneler 3 | . . . . . . . . . . . . 1 . . . . . . 1 . 1 . . . . . . . . Hauler 29 | . 2 5 5 6 4 . . . . . . . . . . . . 4 1 . 1 . . . . 1 . . . Recycler 24 | . 1 7 1 . 2 . 1 . . . . 1 . 1 . . . 5 2 . 2 . . . . 1 . . . Minesweeper 2 | . . . . . . . . . . . 1 . . . . . . . . . . . . . 1 . . . . Mechanic 2 | . . 1 . 1 . . . . . . . . . . . . . . . . . . . . . . . . . Operator 17 | . 1 2 1 1 1 . 1 . . . . . . 1 1 . 7 1 . . . . . . . . . . . Watcher 21 | . . 3 3 2 4 . 1 . . . . 1 . 1 2 . . 1 . . . . . . . 3 . . . Swarmer 68 | . 3 15 6 6 7 . . . . . 4 3 . . . . . . . . 4 . 5 . 4 5 6 . . Cutter 1 | . . . . . . . . . . . . . . . . . . . . . . . . . . . 1 . . Grunt 65 | . 9 17 13 21 . . . . . . . 1 . . 3 . . 1 . . . . . . . . . . . Brawler 5 | . . 2 2 1 . . . . . . . . . . . . . . . . . . . . . . . . . Duelist 3 | . . . 1 2 . . . . . . . . . . . . . . . . . . . . . . . . . Sentry 40 | . . 9 9 8 . . . . . . . . . . 2 . 1 2 . . 1 1 . . . 3 3 . 1 Demolisher 1 | . . . . 1 . . . . . . . . . . . . . . . . . . . . . . . . . Specialist 1 | . . . 1 . . . . . . . . . . . . . . . . . . . . . . . . . . Hunter 8 | . . . . . . . . . 1 . . . . . 2 . . 4 . . . . . . . . 1 . . Programmer 19 | . . . . . 1 . 2 . . . 1 1 . . . . . 1 . . 1 . . . 1 10 1 . . Heavy 2 | . . . 1 . . . . . . . . . . . . . . . . . . . . . . . 1 . . Compactor 1 | . . . . . . . . . . . . . 1 . . . . . . . . . . . . . . . . Cetus Guard 5 | . . . . . . . . . . . . . . . . 5 . . . . . . . . . . . . . Enhanced Grunt 1 | . . . . . . . . . . . . . . . . . . 1 . . . . . . . . . . . Subdweller 2 | . 2 . . . . . . . . . . . . . . . . . . . . . . . . . . . . Decomposer 2 | . . . . . . . . . . . . . . . . . . . . . . . . . 2 . . . . Packrat 1 | . . . . . . . . . . . . . . . . . . . . . . . 1 . . . . . . Samaritan 3 | . . . . . . . . . . . . . . . . . . . . . . 2 1 . . . . . . Assembled 2 | . . . . 2 . . . . . . . . . . . . . . . . . . . . . . . . . Thug 1 | . . . . . . . . . . . . . . . 1 . . . . . . . . . . . . . . Best Kill Streak 11 | . 5 6 5 11 6 . 2 . 1 . 5 6 1 3 5 3 4 7 3 . 4 1 5 . 4 8 4 . 1 Combat Bots Only 9 | . 4 5 5 9 4 . 1 . 1 . 4 3 1 . 3 3 1 3 . . 4 1 5 . 4 5 4 . 1 Max Kills in Single Turn 4 | . 1 4 4 3 2 . 1 . 1 . 4 2 1 1 2 1 1 2 1 . 2 1 2 . 4 2 3 . 1 Gunslinging . | . . . . . . . . . . . . . . . . . . . . . . . . . . . . . . Exploded 4 | . . 3 4 3 2 . . . . . 4 2 . . 1 . . . . . 2 . 2 . 4 2 3 . . Melee 1 | . . . . . 1 . 1 . 1 . . 1 . . . . . . . . 1 1 . . 1 1 . . . Uniques/NPCs Destroyed . | . . . . . . . . . . . . . . . . . . . . . . . . . . . . . . Combat | -11 -10 -9 -8 -8 -7 -7 -7 -7 -7 -7 -6 -6 -6 -6 -6 -6 -6 -6 -5 -5 -5 -5 -5 -5 -4 -4 -4 -4 -3 -------- Run | Yrd Mat Mat Mat Sto Fac Was Fac Low Low Zio Pro Fac Was Fac Ext Cet Arc Hub Fac Was Fac Upp Upp Zhi Pro Fac Arm Lab Res Hostile Shots Fired 1486 | . 109 184 249 137 37 . 29 . 10 . 18 12 . 1 122 5 7 13 23 4 38 17 26 . 29 134 122 63 97 Missed 537 | . 28 51 54 31 19 . 16 . 3 . 12 3 . . 59 4 4 7 15 1 16 4 16 . 11 55 72 28 28 Hits 949 | . 81 133 195 106 18 . 13 . 7 . 6 9 . 1 63 1 3 6 8 3 22 13 10 . 18 79 50 35 69 Melee 23 | . . 6 11 3 . . . . . . . . . . . . . . . 3 . . . . . . . . . Projectile 926 | . 81 127 184 103 18 . 13 . 7 . 6 9 . 1 63 1 3 6 8 . 22 13 10 . 18 79 50 35 69 AOE 9 | . . . . 4 . . . . . . . . . 3 . . . . . . . . . . . . 2 . . Critical Strikes 30 | . 1 1 7 3 1 . 1 . . . 1 . . 1 . . . . . 1 . 2 . . 1 3 5 . 2 Part Disruptions 2 | . . . . 1 . . . . . . . . . . . . . . . . . . . . . 1 . . . Damage Taken 15768 | . 1033 1595 3115 1698 351 . 170 . 90 . 80 143 74 164 740 24 67 185 168 111 395 309 198 . 384 1584 905 910 1275 Core 3067 | . 203 247 336 143 70 . 70 . 23 . 25 62 28 10 229 . 19 . 22 48 56 49 44 . 97 542 201 125 418 Absorbed by Shields 259 | . . . . . . . . . . . . . . . 75 24 . . . . . . . . . . 160 . . Ignored by Resistances 136 | . . . 136 . . . . . . . . . . . . . . . . . . . . . . . . . . Regen/Repaired (Parts) 1871 | . 56 124 61 617 . . 209 . . . . 142 66 . . . . . 21 . . . . . . 575 . . . Core Remaining (%) 48 | 100 18 38 . 12 . . . . . . 73 . . . . . . 59 . . . . . . 68 . . 21 . Volleys Fired 1053 | . 77 158 120 117 11 . . 15 22 . 8 3 10 4 44 22 12 196 29 . 19 . 10 . 2 60 93 17 4 Largest 2 | . 2 2 2 2 1 . . 1 1 . 1 1 1 1 2 1 1 1 1 . 1 . 1 . 1 2 2 1 1 Hottest 110 | . 110 80 60 90 30 . . 30 51 . 51 30 51 30 90 51 51 51 33 . 51 . 51 . 48 98 109 100 100 Shots Fired 1503 | . 125 280 229 231 11 . . 15 22 . 8 3 10 4 45 22 12 196 29 . 20 . 12 . 3 72 133 17 4 Gun 524 | . 84 254 178 . . . . . . . . . . . . . . . . . 7 . . . . . . . 1 Cannon 923 | . 41 19 47 229 5 . . 15 22 . 1 . 10 4 38 22 12 196 29 . 10 . 7 . 1 66 129 17 3 Launcher 56 | . . 7 4 2 6 . . . . . 7 3 . . 7 . . . . . 3 . 5 . 2 6 4 . . Special . | . . . . . . . . . . . . . . . . . . . . . . . . . . . . . . Kinetic 1014 | . 36 264 178 . . . . . 11 . 1 . 10 . 21 22 12 196 29 . 17 . 7 . 1 66 129 14 . Thermal 432 | . 89 9 47 229 5 . . 15 11 . . . . 4 17 . . . . . . . . . . . . 3 3 Explosive 56 | . . 7 4 2 6 . . . . . 7 3 . . 7 . . . . . 3 . 5 . 2 6 4 . . Electromagnetic 1 | . . . . . . . . . . . . . . . . . . . . . . . . . . . . . 1 Robot Hit Streak 33 | . 6 13 27 15 4 . . . 7 . 2 4 14 . 15 10 7 33 1 . 4 . . . 1 8 9 2 4 Robot Miss Streak 6 | . 4 4 3 4 1 . . . 2 . . . . . 5 2 2 3 1 . 1 . 6 . 2 2 5 3 . Penetration Max 1 | . . . . . . . . . . . . . . . 1 1 . 1 . . . . . . . . 1 . . Secondary Targets 10 | . 1 4 5 . . . . . . . . . . . . . . . . . . . . . . . . . . Max Gunslinging Chain 1 | . 1 1 1 . . . . . . . . . . . . . . . . . . . . . . . . . . Shots Hit Robots 1031 | . 78 185 163 135 34 . 11 . 10 . 2 22 10 9 38 9 27 103 17 . 28 13 9 . 7 58 56 3 4 Core Hits 529 | . 35 87 78 70 29 . 5 . 2 . 10 16 1 4 22 7 9 35 8 . 16 3 13 . 10 35 30 1 3 Critical Kills 42 | . 2 . . 1 . . . . . . 1 . 1 . 4 5 1 15 . . . . . . . 8 4 . . Critical Parts Destroyed 67 | . . . . . . . . . 3 . . . 1 . 6 5 3 27 . . . . . . 1 12 9 . . Critical Strikes 139 | . 4 . . 1 . . . . 3 . 2 2 5 1 10 10 8 43 2 . 1 2 1 . 1 25 18 . . Burn 2 | . 2 . . . . . . . . . . . . . . . . . . . . . . . . . . . . Meltdown 2 | . 1 . . 1 . . . . . . . . . . . . . . . . . . . . . . . . . Destroy 117 | . 1 . . . . . . . 3 . 1 . 5 . 10 10 7 42 . . . . . . 1 21 16 . . Blast 3 | . . . . . . . . . . . . . . . . . . . . . . . . . . 1 2 . . Impale 15 | . . . . . . . . . . . 1 2 . 1 . . 1 1 2 . 1 2 1 . . 3 . . . Melee Attacks 386 | . . . . . 54 . 41 . 11 . 1 53 . 27 24 . 23 13 34 . 33 14 12 . 8 37 1 . . Impact . | . . . . . . . . . . . . . . . . . . . . . . . . . . . . . . Slashing 85 | . . . . . 51 . 34 . . . . . . . . . . . . . . . . . . . . . . Piercing 271 | . . . . . . . 6 . 11 . 1 53 . 25 6 . 23 12 30 . 33 14 12 . 8 36 1 . . Sneak Attacks 112 | . . . . . 15 . 6 . . . 1 12 . 7 17 . 8 7 15 . 9 3 3 . 3 6 . . . Combat Hostiles 1 | . . . . . . . . . . . . 1 . . . . . . . . . . . . . . . . . Follow-up Attacks . | . . . . . . . . . . . . . . . . . . . . . . . . . . . . . . Damage Inflicted 33073 | . 1055 3528 3277 4234 1945 . 663 . 174 . 396 1376 165 522 1291 278 1052 2173 1080 . 1920 985 1085 . 647 2395 2564 128 140 Guns 5368 | . 573 2553 2105 . . . . . . . . . . . . . . . . . 135 . . . . . . . 2 Cannons 10682 | . 457 208 647 3898 . . . . 85 . 16 . 165 . 348 278 153 1621 38 . 165 . . . 11 946 1388 128 130 Explosions 5765 | . . 718 427 232 400 . . . . . 315 249 . . 725 . . 39 . . 222 . 464 . 254 544 1176 . . Melee 10974 | . . . . . 1545 . 663 . 89 . 65 1127 . 522 218 . 899 513 1042 . 1398 985 621 . 382 905 . . . Ramming 284 | . 25 49 98 104 . . . . . . . . . . . . . . . . . . . . . . . . 8 Kinetic 10217 | . 159 2638 2105 . . . . . 85 . 16 . 165 . 216 278 153 1621 38 . 300 . . . 11 946 1388 98 . Thermal 5831 | . 871 123 647 3898 . . . . . . . . . . 132 . . . . . . . . . . . . 30 130 Explosive 5726 | . . 718 427 232 400 . . . . . 315 249 . . 725 . . . . . 222 . 464 . 254 544 1176 . . Electromagnetic 41 | . . . . . . . . . . . . . . . . . . 39 . . . . . . . . . . 2 Impact . | . . . . . . . . . . . . . . . . . . . . . . . . . . . . . . Slashing 1990 | . . . . . 1545 . 445 . . . . . . . . . . . . . . . . . . . . . . Piercing 8984 | . . . . . . . 218 . 89 . 65 1127 . 522 218 . 899 513 1042 . 1398 985 621 . 382 905 . . . Highest Corruption 21 | . . 7 . . . 5 7 5 5 5 . 1 1 1 1 1 1 2 1 18 21 21 21 21 21 5 13 13 . Average Corruption 6 | . . 6 . . . 5 5 5 5 5 . 1 1 1 1 1 1 1 1 12 18 21 21 21 21 1 8 6 . Corruption Purged 2 | . . . . . . . 2 . . . . . . . . . . . . . . . . . . . . . . Corruption Blocked 4 | . . . . . . . . . . . . . . . . . . . . . . . . . 4 . . . . Effects 305 | . . 139 . . . 1 25 9 11 3 . 10 2 6 5 3 1 7 . 6 26 15 14 3 13 2 1 3 . Message Errors 64 | . . 29 . . . . 3 4 6 2 . 1 1 2 . . . 3 . 1 6 2 2 . . . . 2 . Matter Fused 79 | . . 35 . . . . 11 3 1 . . 4 1 1 2 . . 2 . 2 6 3 1 2 4 . . 1 . Heat Flow Errors 31 | . . 13 . . . . 1 . . . . 1 . 1 1 1 . . . . 6 1 3 . 2 1 . . . Energy Discharges 42 | . . 21 . . . 1 3 1 2 . . 2 . . 2 . . 1 . . 3 2 2 . 1 1 . . . Parts Rejected 4 | . . 3 . . . . . . . . . . . . . . . . . . 1 . . . . . . . . Parts Fused 7 | . . 3 . . . . . . . . . . . . . 1 . . . . 1 1 1 . . . . . . Data Loss (minor) 31 | . . 14 . . . . 3 . 2 1 . 2 . 1 . . 1 . . . 1 1 3 1 1 . . . . Data Loss (major) 18 | . . 7 . . . . 2 1 . . . . . . . 1 . 1 . . 1 3 . . 2 . . . . Misfires 12 | . . 7 . . . . . . . . . . . . . . . . . . 1 . 2 . 1 . 1 . . Alerts 10 | . . 6 . . . . 2 . . . . . . 1 . . . . . . . 1 . . . . . . . Misdirections 6 | . . . . . . . . . . . . . . . . . . . . 3 . 1 . . 2 . . . . Weapon Failures 1 | . . 1 . . . . . . . . . . . . . . . . . . . . . . . . . . . Overload Shots 3 | . . . . 1 . . . . . . . . . . 2 . . . . . . . . . . . . . . Effects 1 | . . . . . . . . . . . . . . . 1 . . . . . . . . . . . . . . Heat Surge 1 | . . . . . . . . . . . . . . . 1 . . . . . . . . . . . . . . Overflow Damage 2842 | . . 20 2 118 173 . 133 . . . 9 87 . 135 65 . 143 254 184 . 437 382 129 . 48 315 208 . . Projectiles 238 | . . . 2 93 . . . . . . . . . . . . . 108 3 . . . . . . 12 20 . . Explosions 392 | . . 20 . 25 10 . . . . . 9 18 . . 22 . . . . . . . 26 . 48 26 188 . . Melee 2212 | . . . . . 163 . 133 . . . . 69 . 135 43 . 143 146 181 . 437 382 103 . . 277 . . . Knockbacks 34 | . . 1 1 . . . . . 2 . . . . . . . . 14 1 . . . . . . 7 7 1 . Impact 2 | . . 1 1 . . . . . . . . . . . . . . . . . . . . . . . . . . Kinetic 28 | . . . . . . . . . 2 . . . . . . . . 12 1 . . . . . . 6 6 1 . Secondary 4 | . . . . . . . . . . . . . . . . . . 2 . . . . . . . 1 1 . . Self-Inflicted Damage 275 | . . 36 19 . 21 . . . . . . . . . 4 . . 91 . . . . 38 . . 42 21 . 3 Shots 11 | . . 4 1 . 1 . . . . . . . . . 1 . . 1 . . . . 1 . . 1 1 . . Rammed 29 | . . 4 9 9 . . . . . . . . . . . . . . . . . . . . . . . . 7 Targets Rammed 41 | . 8 4 11 11 . . . . . . . . . . . . . . . . . . . . . . . . 7 Kicked 8 | . 8 . . . . . . . . . . . . . . . . . . . . . . . . . . . . Crushed 4 | . . . 2 2 . . . . . . . . . . . . . . . . . . . . . . . . . Highest Temperature 270 | . 207 253 12 60 3 . 223 . 44 . . 199 . 94 235 217 . 5 1 . 252 100 270 . 238 251 18 . . Average Temperature 65 | . 64 62 9 28 3 . 119 . 22 . . 110 . 58 77 111 . 2 1 . 102 58 105 . 82 134 7 . . Received Heat Transfer 3321 | . 402 447 1080 720 9 . 6 . . . 18 18 9 . 239 . . . 51 . 36 63 9 . . 36 93 . 85 Effects 3 | . . 3 . . . . . . . . . . . . . . . . . . . . . . . . . . . Interference 3 | . . 3 . . . . . . . . . . . . . . . . . . . . . . . . . . . Siege Activations . | . . . . . . . . . . . . . . . . . . . . . . . . . . . . . . Martial Activations . | . . . . . . . . . . . . . . . . . . . . . . . . . . . . . . Shielding Activations . | . . . . . . . . . . . . . . . . . . . . . . . . . . . . . . Robots Disrupted 1 | . . . . . . . . . . . . . . . . . . . . . . . . . . . . . 1 Combat Hostiles 1 | . . . . . . . . . . . . . . . . . . . . . . . . . . . . . 1 Robots Corrupted . | . . . . . . . . . . . . . . . . . . . . . . . . . . . . . . Combat Hostiles . | . . . . . . . . . . . . . . . . . . . . . . . . . . . . . . Parts Fried . | . . . . . . . . . . . . . . . . . . . . . . . . . . . . . . Impact Corruptions . | . . . . . . . . . . . . . . . . . . . . . . . . . . . . . . Robots Melted 3 | . 2 . . 1 . . . . . . . . . . . . . . . . . . . . . . . . . Combat Hostiles 2 | . 1 . . 1 . . . . . . . . . . . . . . . . . . . . . . . . . Parts Melted 16 | . 8 . . 6 . . . . . . . . . . . . . 2 . . . . . . . . . . . Heat Transferred 9048 | . 2331 259 888 5304 . . . . . . . . . . 137 . . . . . . . . . . . . 18 111 Parts Sabotaged . | . . . . . . . . . . . . . . . . . . . . . . . . . . . . . . Parts Stolen . | . . . . . . . . . . . . . . . . . . . . . . . . . . . . . . Parts Stripped . | . . . . . . . . . . . . . . . . . . . . . . . . . . . . . . Power Chain Reactions . | . . . . . . . . . . . . . . . . . . . . . . . . . . . . . . Alert | -11 -10 -9 -8 -8 -7 -7 -7 -7 -7 -7 -6 -6 -6 -6 -6 -6 -6 -6 -5 -5 -5 -5 -5 -5 -4 -4 -4 -4 -3 ------- Run | Yrd Mat Mat Mat Sto Fac Was Fac Low Low Zio Pro Fac Was Fac Ext Cet Arc Hub Fac Was Fac Upp Upp Zhi Pro Fac Arm Lab Res Maximum Alert Level 5 | . . 2 2 2 1 . . . . . . . . . 1 1 1 3 1 . 1 . . . . 1 5 . . Low Security (%) 53 | 100 100 55 29 16 43 100 100 . . . . 100 100 100 71 24 12 11 25 100 84 . . . . 91 28 . 100 Level 1 34 | . . 42 65 20 56 . . . . . . . . . 28 75 87 24 74 . 15 . . . . 8 9 . . Level 2 10 | . . 2 4 62 . . . . . . . . . . . . . 61 . . . . . . . . 14 . . Level 3 . | . . . . . . . . . . . . . . . . . . 3 . . . . . . . . 9 . . Level 4 . | . . . . . . . . . . . . . . . . . . . . . . . . . . . 4 . . Level 5 . | . . . . . . . . . . . . . . . . . . . . . . . . . . . 2 . . High Security . | . . . . . . . . . . . . . . . . . . . . . . . . . . . 31 . . Max Security . | . . . . . . . . . . . . . . . . . . . . . . . . . . . . . . Peak Influence 2352 | . 105 453 419 586 362 42 68 . . . . 113 38 135 260 308 275 826 320 93 239 . . . . 272 2352 . 30 Initial 261 | . . . 191 97 261 42 8 . . . . 34 12 . 7 104 95 88 259 93 . . . . . 31 78 . . Average 215 | . 27 187 228 392 241 35 14 . . . . 43 9 82 151 234 247 413 211 27 119 . . . . 123 967 . 4 Influence Increases 14881 | . 373 1388 1161 1455 546 . 287 . 45 . 140 440 46 480 601 344 260 1575 644 . 489 30 235 . 140 961 3186 . 55 Destroy 0b10 Robot/C 6020 | . 240 860 660 780 160 . 40 . 20 . 100 100 . 140 360 160 80 460 . . 120 20 100 . 100 380 1120 . 20 Destroy 0b10 Robot/NC 885 | . 20 115 60 75 90 . 30 . . . 5 55 . 40 30 10 35 125 50 . 45 10 5 . 5 45 25 . 10 Destroy Leader 1434 | . 64 246 196 186 36 . 22 . 10 . 20 22 . 52 44 . . 124 2 . 22 . 10 . 20 108 240 . 10 Allied During Kill 2316 | . . . . . . . . . . . . . . 109 79 165 115 497 . . . . . . . 4 1347 . . Trap Triggered on 0b10 140 | . 10 . . . 20 . . . . . . 60 . . . . . 40 . . . . . . . 10 . . . Successful Hack 671 | . 9 45 17 20 43 . 35 . . . . 75 . 26 23 7 . 33 128 . 80 . . . . 88 42 . . Select Force Hacks 90 | . . 60 . . . . . . . . . 30 . . . . . . . . . . . . . . . . . Disable Machine 630 | . . 45 30 90 30 . 30 . . . . 15 . 15 . . 30 135 15 . 15 . . . . 30 150 . . Anti-Garrison Action 200 | . . . . 200 . . . . . . . . . . . . . . . . . . . . . . . . . Destroy Structure 1010 | . . 17 63 74 32 . 25 . . . . 53 46 68 35 2 . 131 74 . 42 . . . . 116 232 . . Partial Spotted 315 | . . . . . 60 . 15 . . . . 30 . 15 . . . 30 45 . 30 . . . . 75 15 . . Lose Combat Pursuer 1170 | . 30 . 135 30 75 . 90 . 15 . 15 . . 15 30 . . . 330 . 135 . 120 . 15 105 15 . 15 Influence Decreases 14881 | . 373 935 1382 1111 1001 109 299 . 45 . 85 460 81 465 428 294 243 1299 908 267 356 163 130 105 90 851 1152 2194 55 Entered New Map 4137 | . . . 262 135 315 79 4 . . . . 21 23 . 8 84 143 167 272 174 . 50 . 105 . 19 82 2194 . Time Decay 6803 | . 363 745 770 656 526 10 275 . 45 . 80 429 58 228 309 190 80 342 356 23 226 110 120 . 70 542 230 . 20 Search Patrol Dispatched 200 | . . . . . . . . . . . . . . . . . . . 100 . 100 . . . . . . . . Lost Part 694 | . 10 40 200 20 10 . 10 . . . 5 . . . 51 . . 30 . 50 30 3 10 . 20 80 90 . 35 Lost Ally 1247 | . . . . . . 20 10 . . . . 10 . 237 60 20 20 160 30 20 . . . . . 60 600 . . Purge Threat 1800 | . . 150 150 300 150 . . . . . . . . . . . . 600 150 . . . . . . 150 150 . . Squads Dispatched 100 | . 2 8 3 11 10 . 6 . . . . 11 . 2 4 . . 10 7 . 5 . . . . 3 18 . . Investigation 28 | . 1 5 1 4 4 . 2 . . . . 4 . . . . . . 3 . 1 . . . . . 3 . . Extermination 25 | . . . . . 4 . 3 . . . . 4 . 2 . . . 2 3 . 2 . . . . 3 2 . . Reinforcement 33 | . 1 3 2 3 2 . 1 . . . . 2 . . 4 . . 7 1 . 2 . . . . . 5 . . Assault 9 | . . . . 1 . . . . . . . . . . . . . . . . . . . . . . 8 . . Garrison 5 | . . . . 3 . . . . . . . 1 . . . . . 1 . . . . . . . . . . . Intercept . | . . . . . . . . . . . . . . . . . . . . . . . . . . . . . . Searches Triggered 2 | . . . . . . . . . . . . . . . . . . . 1 . 1 . . . . . . . . Unchained Authorized 3 | . . . . . . . . . . . . 1 . 1 . . . . . . . . . . . 1 . . . Construction Impeded 8 | . . 1 . 2 . . . . . . . . . . 2 . . 3 . . . . . . . . . . . Haulers Reinforced 6 | . . . . . 1 . 1 . . . . . . . . . . 3 . . 1 . . . . . . . . Active Scanning Responses . | . . . . . . . . . . . . . . . . . . . . . . . . . . . . . . Cargo Convoy Interrupts . | . . . . . . . . . . . . . . . . . . . . . . . . . . . . . . Stealth | -11 -10 -9 -8 -8 -7 -7 -7 -7 -7 -7 -6 -6 -6 -6 -6 -6 -6 -6 -5 -5 -5 -5 -5 -5 -4 -4 -4 -4 -3 --------- Run | Yrd Mat Mat Mat Sto Fac Was Fac Low Low Zio Pro Fac Was Fac Ext Cet Arc Hub Fac Was Fac Upp Upp Zhi Pro Fac Arm Lab Res Distress Signals 44 | . . 5 2 5 . . 2 . . . . 2 . 1 4 2 . 4 3 . 1 . . . . 2 8 . 3 Communications Jammed 5 | . . . . . . . 3 . . . . . . . . . . . . . 1 . . . . 1 . . . Distress Signals 5 | . . . . . . . 3 . . . . . . . . . . . . . 1 . . . . 1 . . . Times Spotted 587 | . 27 65 67 72 24 5 15 . 3 . 10 10 6 5 26 9 13 21 28 6 14 4 13 . 6 35 85 1 17 Peak Tracking Total 43 | . 5 4 8 10 4 6 5 . 1 . 4 3 4 2 4 5 2 3 12 6 6 4 5 . 5 8 43 1 11 Tactical Retreats 50 | . 2 . 6 4 4 . 4 . 1 . 1 . . 1 2 . . . 9 . 6 . 2 . 1 5 1 . 1 Traps | -11 -10 -9 -8 -8 -7 -7 -7 -7 -7 -7 -6 -6 -6 -6 -6 -6 -6 -6 -5 -5 -5 -5 -5 -5 -4 -4 -4 -4 -3 ------- Run | Yrd Mat Mat Mat Sto Fac Was Fac Low Low Zio Pro Fac Was Fac Ext Cet Arc Hub Fac Was Fac Upp Upp Zhi Pro Fac Arm Lab Res Traps Triggered 27 | . . 2 1 2 4 . 5 . . . . 1 . 1 3 . . 1 5 . 1 . . . . . 1 . . Indirectly . | . . . . . . . . . . . . . . . . . . . . . . . . . . . . . . Trap Hack Attempts 73 | . . . . . . . . . . . . 24 . . 31 . . 18 . . . . . . . . . . . Triggered . | . . . . . . . . . . . . . . . . . . . . . . . . . . . . . . Disarmed 3 | . . . . . . . . . . . . 2 . . 1 . . . . . . . . . . . . . . Reprogrammed 44 | . 2 . . . 4 . 6 . . . . 16 . . 6 . . 5 . . . . . . . 5 . . . Reused 14 | . 1 . . . 2 . . . . . . 6 . . . . . 4 . . . . . . . 1 . . . Traps Extracted . | . . . . . . . . . . . . . . . . . . . . . . . . . . . . . . Installed . | . . . . . . . . . . . . . . . . . . . . . . . . . . . . . . Triggered 14 | . 1 . . . 2 . . . . . . 6 . . . . . 4 . . . . . . . 1 . . . Machines | -11 -10 -9 -8 -8 -7 -7 -7 -7 -7 -7 -6 -6 -6 -6 -6 -6 -6 -6 -5 -5 -5 -5 -5 -5 -4 -4 -4 -4 -3 ---------- Run | Yrd Mat Mat Mat Sto Fac Was Fac Low Low Zio Pro Fac Was Fac Ext Cet Arc Hub Fac Was Fac Upp Upp Zhi Pro Fac Arm Lab Res Machines Disabled 44 | . . 3 2 6 2 . 2 . . . . 1 . 1 . . 2 9 1 . 1 . . . . 2 10 2 . Max in Single Turn 6 | . . 1 1 1 1 . 1 . . . . 1 . . . . 1 6 1 . 1 . . . . 1 1 1 . Garrison Access 8 | . . . 1 1 1 . 1 . . . . . . . . . . 1 . . 1 . . . . 1 . . 1 Network Hub 1 | . . . . . . . . . . . . . . . . . . 1 . . . . . . . . . . . Machines Repaired . | . . . . . . . . . . . . . . . . . . . . . . . . . . . . . . Machines Dismantled 2 | . . . . 2 . . . . . . . . . . . . . . . . . . . . . . . . . Machines Sabotaged . | . . . . . . . . . . . . . . . . . . . . . . . . . . . . . . Overloaded Fab Kills . | . . . . . . . . . . . . . . . . . . . . . . . . . . . . . . Hacking | -11 -10 -9 -8 -8 -7 -7 -7 -7 -7 -7 -6 -6 -6 -6 -6 -6 -6 -6 -5 -5 -5 -5 -5 -5 -4 -4 -4 -4 -3 --------- Run | Yrd Mat Mat Mat Sto Fac Was Fac Low Low Zio Pro Fac Was Fac Ext Cet Arc Hub Fac Was Fac Upp Upp Zhi Pro Fac Arm Lab Res Machines Accessed 184 | . 7 13 13 16 19 . 17 . . . . 17 . 9 12 1 1 9 15 . 8 . 1 4 . 12 8 1 1 Terminals 117 | . 6 10 10 13 10 . 8 . . . . 10 . 6 12 1 . 8 9 . 6 . . . . 3 5 . . Fabricators 18 | . . . . . 5 . 2 . . . . 2 . 1 . . . . 3 . . . . . . 2 3 . . Repair Stations 19 | . 1 1 1 2 1 . 4 . . . . 3 . 1 . . . . 1 . . . . . . 4 . . . Recycling Units 1 | . . . . . 1 . . . . . . . . . . . . . . . . . . . . . . . . Scanalyzers 13 | . . 2 1 . 1 . 1 . . . . 2 . 1 . . . . 2 . 1 . . . . 2 . . . Garrison Access 9 | . . . 1 1 1 . 2 . . . . . . . . . . 1 . . 1 . . . . 1 . . 1 Total Hacks 721 | . 21 48 49 45 53 . 49 . . . . 83 . 44 26 2 25 29 82 . 35 . 1 17 . 78 31 1 2 Successful 437 | . 12 28 30 22 36 . 36 . . . . 41 . 24 15 1 25 15 52 . 18 . 1 17 . 49 13 1 1 Failed 283 | . 9 19 19 23 17 . 13 . . . . 42 . 20 11 1 . 14 30 . 17 . . . . 29 18 . 1 Catastrophic 35 | . 1 3 2 7 . . . . . . . 3 . 2 2 . . 3 3 . 1 . . . . 3 4 . 1 Database Lockouts 1 | . . 1 . . . . . . . . . . . . . . . . . . . . . . . . . . . Manual 207 | . 1 28 26 3 10 . 18 . . 1 . 17 . 23 8 1 2 14 25 . 9 . . . . 19 1 1 . Terminals 436 | . 16 35 37 32 28 . 24 . . . . 51 . 29 26 2 . 28 56 . 32 . . . . 21 19 . . Fabricators 78 | . . . . . 13 . 7 . . . . 10 . 8 . . . . 16 . . . . . . 12 12 . . Repair Stations 77 | . 5 2 2 10 2 . 9 . . . . 14 . 2 . . . . 2 . . . . . . 29 . . . Recycling Units 3 | . . . . . 3 . . . . . . . . . . . . . . . . . . . . . . . . Scanalyzers 66 | . . 11 9 . 6 . 5 . . . . 8 . 5 . . . . 8 . 1 . . . . 13 . . . Garrison Access 17 | . . . 1 3 1 . 4 . . . . . . . . . . 1 . . 2 . . . . 3 . . 2 Terminal Hacks 218 | . 9 7 7 13 16 . 13 . . . . 17 . 5 15 1 25 14 28 . 14 . 1 17 . 8 7 1 . Record 32 | . . . . . . . . . . . . . . . . . 25 . . . . . . 5 . . 1 1 . Part Schematic 12 | . . . . . 1 . . . . . . 3 . . . . . 1 3 . . . . 4 . . . . . Robot Schematic 1 | . . . . . . . . . . . . . . . . . . . . . 1 . . . . . . . . Robot Analysis 9 | . . . 1 . . . . . . . . 1 . 1 . . . . . . 2 . . 4 . . . . . Prototype ID Bank 8 | . 1 1 1 . . . . . . . . 1 . . . . . . . . . . . 4 . . . . . Open Door 16 | . . . . 4 . . . . . . . . . 1 8 1 . . . . . . 1 . . . 1 . . Level Access Points 1 | . . . . . . . . . . . . . . . . . . . 1 . . . . . . . . . . Branch Access Points 8 | . . 2 . . 1 . 1 . . . . 1 . 1 . . . . 1 . 1 . . . . . . . . Machine Index 4 | . . . . . 1 . . . . . . 1 . . 1 . . . 1 . . . . . . . . . . Terminal Index 2 | . . . . . . . 1 . . . . . . . . . . . . . . . . . . 1 . . . Fabricator Index 1 | . . . . . . . . . . . . . . . . . . . . . 1 . . . . . . . . Repair Station Index 3 | . . . . . 1 . . . . . . . . . . . . . 1 . . . . . . 1 . . . Scanalyzer Index 1 | . . . . . . . . . . . . . . . . . . . . . 1 . . . . . . . . Garrison Index 1 | . . . . . . . . . . . . . . . . . . . 1 . . . . . . . . . . Alert Level 31 | . 3 1 4 6 2 . 4 . . . . 1 . . . . . 3 3 . 1 . . . . 1 2 . . Unreport Threat 12 | . . 1 1 2 1 . . . . . . . . . . . . 4 1 . . . . . . 1 1 . . Locate Traps 13 | . 2 . . . 3 . 1 . . . . 1 . . 1 . . 2 1 . 1 . . . . 1 . . . Reprogram Traps 8 | . 2 . . . 1 . 1 . . . . 3 . . . . . . . . . . . . . 1 . . . Dispatch Records 4 | . . . . . . . . . . . . . . . 2 . . . 1 . . . . . . 1 . . . Patrol Status 2 | . . . . . . . . . . . . . . . . . . . 1 . . . . . . . 1 . . Transport Status 2 | . . . . . . . . . . . . . . . . . . 1 . . 1 . . . . . . . . Investigation Status 1 | . . . . . . . . . . . . . . . . . . . 1 . . . . . . . . . . Recall Investigation 4 | . . . . . 1 . . . . . . . . . . . . . 3 . . . . . . . . . . Recall Extermination 4 | . . . . . 1 . . . . . . 1 . 1 . . . . 1 . . . . . . . . . . Recall Reinforcements 5 | . . . . . . . . . . . . 1 . . 2 . . . 2 . . . . . . . . . . Recall Assault 1 | . . . . . . . . . . . . . . . . . . . 1 . . . . . . . . . . Hauler Manifests 8 | . 1 1 . . 1 . . . . . . 1 . 1 . . . 1 1 . 1 . . . . . . . . Registered Components 2 | . . . . . . . . . . . . 1 . . . . . . . . 1 . . . . . . . . Registered Prototypes 5 | . . . . . 1 . 1 . . . . 1 . . . . . . 1 . . . . . . . 1 . . Zone Layout 17 | . . 1 . 1 1 . 4 . . . . . . . 1 . . 2 3 . 3 . . . . 1 . . . Fabricator Hacks 33 | . . . . . 9 . 4 . . . . 4 . 2 . . . . 8 . . . . . . 1 5 . . Network Status 5 | . . . . . 1 . 1 . . . . 1 . . . . . . 1 . . . . . . 1 . . . Load Schematic 17 | . . . . . 5 . 2 . . . . 2 . 1 . . . . 4 . . . . . . . 3 . . Build 11 | . . . . . 3 . 1 . . . . 1 . 1 . . . . 3 . . . . . . . 2 . . Repair Station Hacks 55 | . 3 2 2 8 . . 7 . . . . 9 . 2 . . . . 2 . . . . . . 20 . . . Scan Component 30 | . 2 1 1 4 . . 4 . . . . 5 . 1 . . . . 1 . . . . . . 11 . . . Repair 25 | . 1 1 1 4 . . 3 . . . . 4 . 1 . . . . 1 . . . . . . 9 . . . Recycling Unit Hacks . | . . . . . . . . . . . . . . . . . . . . . . . . . . . . . . Scanalyzer 58 | . . 7 9 . 6 . 5 . . . . 7 . 5 . . . . 7 . 1 . . . . 11 . . . Insert Component 23 | . . 2 3 . 3 . 2 . . . . 2 . 2 . . . . 3 . 1 . . . . 5 . . . Analyze 24 | . . 2 3 . 2 . 2 . . . . 3 . 3 . . . . 3 . . . . . . 6 . . . Retrieve Study 11 | . . 3 3 . 1 . 1 . . . . 2 . . . . . . 1 . . . . . . . . . . Garrison Access Hacks 7 | . . . 1 . 1 . 1 . . . . . . . . . . 1 . . 1 . . . . 1 . . 1 Seal Access 7 | . . . 1 . 1 . 1 . . . . . . . . . . 1 . . 1 . . . . 1 . . 1 Unauthorized Hacks 66 | . . 12 11 1 4 . 6 . . . . 4 . 10 . . . . 7 . 2 . . . . 8 1 . . Terminals 43 | . . 10 11 . 1 . 4 . . . . 1 . 7 . . . . 3 . 2 . . . . 4 . . . Assimilate 5 | . . . . . . . 1 . . . . 1 . 1 . . . . 1 . 1 . . . . . . . . Botnet 20 | . . 5 6 . 1 . 1 . . . . . . 3 . . . . 1 . 1 . . . . 2 . . . Operators 2 | . . . . . . . 1 . . . . . . . . . . . . . . . . . . 1 . . . Skim 16 | . . 5 5 . . . 1 . . . . . . 3 . . . . 1 . . . . . . 1 . . . Fabricators 19 | . . . . . 3 . 2 . . . . 2 . 3 . . . . 4 . . . . . . 4 1 . . Report 1 | . . . . . . . . . . . . . . . . . . . . . . . . . . 1 . . . Prioritize 6 | . . . . . . . 1 . . . . 1 . 1 . . . . 2 . . . . . . 1 . . . Liberate 3 | . . . . . . . . . . . . . . 1 . . . . . . . . . . . 1 1 . . Haulers 4 | . . . . . 1 . . . . . . . . 1 . . . . 1 . . . . . . 1 . . . Recompile 5 | . . . . . 2 . 1 . . . . 1 . . . . . . 1 . . . . . . . . . . Repair Stations . | . . . . . . . . . . . . . . . . . . . . . . . . . . . . . . Recycling Units . | . . . . . . . . . . . . . . . . . . . . . . . . . . . . . . Scanalyzers 3 | . . 2 . . . . . . . . . 1 . . . . . . . . . . . . . . . . . Extract 3 | . . 2 . . . . . . . . . 1 . . . . . . . . . . . . . . . . . Garrison Access 1 | . . . . 1 . . . . . . . . . . . . . . . . . . . . . . . . . Jam 1 | . . . . 1 . . . . . . . . . . . . . . . . . . . . . . . . . Data Cores Recovered 4 | . . . 1 . 1 . . . . . . . . 1 . . . 1 . . . . . . . . . . . Used . | . . . . . . . . . . . . . . . . . . . . . . . . . . . . . . Hacking Detections 135 | . 5 10 11 14 15 . 14 . . . . 15 . 8 4 . . 8 13 . 4 . . . . 7 7 . . Full Trace Events 12 | . . 1 . 2 2 . 1 . . . . 1 . . . . . . 2 . . . . . . . 3 . . Feedback Events 1 | . . . . . . . . . . . . . . . . . . . . . . . . . . . 1 . . Corruption 1 | . . . . . . . . . . . . . . . . . . . . . . . . . . . 1 . . Feedback Blocked . | . . . . . . . . . . . . . . . . . . . . . . . . . . . . . . Robot Schematics Acquired 1 | . . . . . . . . . . . . . . . . . . . . . 1 . . . . . . . . Robots Built 6 | . . . . . . . . . . . . . . . . . . . . . . . . . . . 6 . . Authchips . | . . . . . . . . . . . . . . . . . . . . . . . . . . . . . . Time 225 | . . . . . . . . . . . . . . . . . . . . . . . . . . . 225 . . Total Robot Build Rating 36 | . . . . . . . . . . . . . . . . . . . . . . . . . . . 36 . . Part Schematics Acquired 40 | . . 9 3 . 3 . 2 . . . . 6 . 2 . . . 1 6 . . . . 4 . 4 . . . Parts Built 10 | . . . . . 3 . 1 . . . . 1 . 1 . . . . 4 . . . . . . . . . . Authchips 5 | . . . . . 2 . 1 . . . . . . 1 . . . . 1 . . . . . . . . . . Time 485 | . . . . . 154 . 67 . . . . 38 . 76 . . . . 150 . . . . . . . . . . Total Part Build Rating 51 | . . . . . 9 . 4 . . . . 5 . 5 . . . . 28 . . . . . . . . . . Part Studies Acquired 11 | . . 3 3 . 1 . 1 . . . . 2 . . . . . . 1 . . . . . . . . . . Parts Repaired 24 | . 1 1 1 4 . . 3 . . . . 4 . . . . . . 1 . . . . . . 9 . . . Time 1241 | . 26 51 32 216 . . 107 . . . . 184 . 40 . . . . 38 . . . . . . 547 . . . Parts Recycled . | . . . . . . . . . . . . . . . . . . . . . . . . . . . . . . Recycled Matter . | . . . . . . . . . . . . . . . . . . . . . . . . . . . . . . Retrieved Matter . | . . . . . . . . . . . . . . . . . . . . . . . . . . . . . . Retrieved Components . | . . . . . . . . . . . . . . . . . . . . . . . . . . . . . . Parts Scanalyzed 20 | . . 2 3 . 2 . 2 . . . . 2 . 2 . . . . 3 . . . . . . 4 . . . Part Schematics Acquired 20 | . . 2 3 . 2 . 2 . . . . 2 . 2 . . . . 3 . . . . . . 4 . . . Parts Damaged 2 | . . . . . . . . . . . . 1 . . . . . . 1 . . . . . . . . . . Bothacking | -11 -10 -9 -8 -8 -7 -7 -7 -7 -7 -7 -6 -6 -6 -6 -6 -6 -6 -6 -5 -5 -5 -5 -5 -5 -4 -4 -4 -4 -3 ------------ Run | Yrd Mat Mat Mat Sto Fac Was Fac Low Low Zio Pro Fac Was Fac Ext Cet Arc Hub Fac Was Fac Upp Upp Zhi Pro Fac Arm Lab Res Used RIF Installer . | . . . . . . . . . . . . . . . . . . . . . . . . . . . . . . Robots Hacked 5 | . . . . . 2 . . . . . . . . . 1 . . . 2 . . . . . . . . . . Non-combat 5 | . . . . . 2 . . . . . . . . . 1 . . . 2 . . . . . . . . . . Combat . | . . . . . . . . . . . . . . . . . . . . . . . . . . . . . . Robot Hacks Applied 6 | . . . . . 2 . . . . . . . . . 2 . . . 2 . . . . . . . . . . find_chute 4 | . . . . . 2 . . . . . . . . . . . . . 2 . . . . . . . . . . check_alert 2 | . . . . . . . . . . . . . . . 2 . . . . . . . . . . . . . . Relay Couplers Released . | . . . . . . . . . . . . . . . . . . . . . . . . . . . . . . Fabnet Peak Effective % . | . . . . . . . . . . . . . . . . . . . . . . . . . . . . . . Robots Rewired 29 | . . . . . . . . . . . . . . . 7 . . . 2 . . . . . . . 19 . 1 Allies Hacked 1 | . . . . . . . . . . . . . . . . . . . . . . . . . . . 1 . . Hacks Repelled . | . . . . . . . . . . . . . . . . . . . . . . . . . . . . . . Allies | -11 -10 -9 -8 -8 -7 -7 -7 -7 -7 -7 -6 -6 -6 -6 -6 -6 -6 -6 -5 -5 -5 -5 -5 -5 -4 -4 -4 -4 -3 -------- Run | Yrd Mat Mat Mat Sto Fac Was Fac Low Low Zio Pro Fac Was Fac Ext Cet Arc Hub Fac Was Fac Upp Upp Zhi Pro Fac Arm Lab Res Total Allies 91 | . . . . . . 1 1 . . . . 1 20 1 18 5 . . 3 1 1 . . . . 3 35 . 1 Largest Group 24 | . . . . . . 1 1 . . . . 1 20 16 11 15 14 12 2 1 1 . . . . 3 24 . 1 Highest-Rated Group 1136 | . . . . . . 31 10 . . . . 26 733 633 460 920 895 705 61 49 10 . . . . 141 1136 . 56 Highest-Rated Ally 159 | . . . . . . 31 10 . . . . 26 50 50 159 159 159 96 49 49 10 . . . . 47 64 . 56 Total Orders . | . . . . . . . . . . . . . . . . . . . . . . . . . . . . . . Ally Attacks 755 | . . . . . . 5 . . . . . . 103 87 65 39 24 110 . 1 . . . . . 9 310 . 2 Total Damage 21491 | . . . . . . 63 . . . . . . 4269 2152 969 690 573 2744 . 25 . . . . . 285 9623 . 98 Kills 107 | . . . . . . . . . . . . . 9 8 11 5 3 20 . . . . . . . 1 48 . 2 Allies Corrupted 5 | . . . . . . . . . . . . . . . . . . 2 . . . . . . . . 3 . . Allies Melted 1 | . . . . . . . . . . . . . . . . . . . . . . . . . . . 1 . . Intel | -11 -10 -9 -8 -8 -7 -7 -7 -7 -7 -7 -6 -6 -6 -6 -6 -6 -6 -6 -5 -5 -5 -5 -5 -5 -4 -4 -4 -4 -3 ------- Run | Yrd Mat Mat Mat Sto Fac Was Fac Low Low Zio Pro Fac Was Fac Ext Cet Arc Hub Fac Was Fac Upp Upp Zhi Pro Fac Arm Lab Res Active Infowar (turns) 20387 | . . 4298 4617 2441 1272 28 1066 319 537 360 73 907 235 575 25 120 123 . 713 19 160 176 115 44 212 1424 523 . 5 Optics 5912 | . . . 3717 1952 . . . . . . . . . . . 120 123 . . . . . . . . . . . . Sensors 6977 | . . 2 . . 902 28 1066 319 537 360 73 907 235 575 25 . . . . . 118 176 . . . 1131 523 . . Terrain 732 | . . . . . . . . . . . . . . . . . . . 713 19 . . . . . . . . . T.N.C. 11534 | . . 4298 4617 2441 178 . . . . . . . . . . . . . . . . . . . . . . . . Jamming 1632 | . . . . . 477 . 386 . . . . . . . . . . . . . 99 . 115 44 212 293 1 . 5 Robot Analysis Total 9 | . . . 1 . . . . . . . . 1 . 1 . . . . . . 2 . . 4 . . . . . Derelict Logs Recovered 7 | . . . . . . . . 1 2 1 1 . . . . . . . . . . 1 . . 1 . . . . Drone Launches . | . . . . . . . . . . . . . . . . . . . . . . . . . . . . . . Drone Recoveries . | . . . . . . . . . . . . . . . . . . . . . . . . . . . . . . Exploration | -11 -10 -9 -8 -8 -7 -7 -7 -7 -7 -7 -6 -6 -6 -6 -6 -6 -6 -6 -5 -5 -5 -5 -5 -5 -4 -4 -4 -4 -3 ------------- Run | Yrd Mat Mat Mat Sto Fac Was Fac Low Low Zio Pro Fac Was Fac Ext Cet Arc Hub Fac Was Fac Upp Upp Zhi Pro Fac Arm Lab Res Turns Passed 26506 | 12 1307 5106 4617 2441 1465 28 1104 319 537 419 190 1125 235 575 698 388 179 778 816 86 639 309 263 69 212 1555 725 168 141 Spaces Moved 26815 | 11 771 1782 1746 749 2464 100 1542 1087 1350 1536 552 1377 250 1204 976 316 163 961 1871 216 1177 637 604 163 446 1335 1073 212 144 Core 46 | . 5 . 2 . . . . . . . . . . . . . . . . . . . 2 1 . . . . 36 Treads 4104 | . . 1599 1744 749 12 . . . . . . . . . . . . . . . . . . . . . . . . Legs 960 | 11 766 183 . . . . . . . . . . . . . . . . . . . . . . . . . . . Wheels . | . . . . . . . . . . . . . . . . . . . . . . . . . . . . . . Hover . | . . . . . . . . . . . . . . . . . . . . . . . . . . . . . . Flight 21705 | . . . . . 2452 100 1542 1087 1350 1536 552 1377 250 1204 976 316 163 961 1871 216 1177 637 602 162 446 1335 1073 212 108 Fastest Speed 26 | 120 120 160 200 232 26 26 26 26 26 26 26 26 29 29 29 29 29 28 26 26 27 29 29 29 29 28 27 29 40 Average Speed 66 | 120 129 251 234 232 28 26 26 26 26 26 26 27 29 30 29 29 29 29 26 31 29 31 29 30 31 46 27 35 65 Slowest Speed 1550 | 120 300 320 1550 330 232 26 29 26 26 29 26 96 29 99 95 29 29 32 29 34 31 104 250 200 102 109 31 40 300 Overloaded Moves . | . . . . . . . . . . . . . . . . . . . . . . . . . . . . . . Propulsion Burnouts . | . . . . . . . . . . . . . . . . . . . . . . . . . . . . . . Robots Hopped 90 | . . . . . 7 . 4 . . . . . . 3 6 . . 29 13 6 2 . . . . 5 15 . . Potential Cave-ins 13 | . . . . . . . . . . . . . . . 8 . . 5 . . . . . . . . . . . Cave-ins Triggered . | . . . . . . . . . . . . . . . . . . . . . . . . . . . . . . Teleports 2 | . . . . . . . . . . . . . . . . . . . . . . . . . . . 1 . 1 Exploration Rate (%) 64 | 3 79 96 96 93 57 82 35 99 99 81 58 39 87 30 65 76 76 55 45 94 26 73 69 62 60 34 60 96 7 Regions Visited 29 Branch Regions 15 Pre-discovered Areas 9 | . . . 6 . . . . . . . . . . . . . . . . . . . . 3 . . . . . Known Exits Taken 20 | . . . 1 1 . . 1 1 1 1 1 . . 1 1 1 1 1 . . 1 1 1 1 1 1 1 1 . Unknown Exits Taken 3 | 1 1 1 . . . . . . . . . . . . . . . . . . . . . . . . . . . Scrap Searched 15 | . . . . . . . . 3 5 2 1 . . . . . . . . . . . 4 . . . . . . Spaces Dug 243 | . . . 2 9 15 . 25 4 8 . 9 24 . 14 9 . . 37 35 . 9 . 4 . . 29 10 . . Terrain Destroyed 995 | . . 17 73 72 28 . 25 9 11 . 60 53 . 15 44 1 . 243 40 . 19 . 54 . 27 62 141 1 . Melee 130 | . . . . . 14 . 25 . 6 . . 24 . 14 3 . . 1 13 . 9 . 3 . . 17 1 . . Projectile 271 | . . . 16 62 2 . . 9 5 . . . . 1 11 1 . 78 27 . 1 . 2 . . 18 37 1 . AOE 594 | . . 17 57 10 12 . . . . . 60 29 . . 30 . . 164 . . 9 . 49 . 27 27 103 . . Terrain Rammed . | . . . . . . . . . . . . . . . . . . . . . . . . . . . . . . Walls Destroyed . | . . . . . . . . . . . . . . . . . . . . . . . . . . . . . . Machines Disabled . | . . . . . . . . . . . . . . . . . . . . . . . . . . . . . . Actions | -11 -10 -9 -8 -8 -7 -7 -7 -7 -7 -7 -6 -6 -6 -6 -6 -6 -6 -6 -5 -5 -5 -5 -5 -5 -4 -4 -4 -4 -3 --------- Run | Yrd Mat Mat Mat Sto Fac Was Fac Low Low Zio Pro Fac Was Fac Ext Cet Arc Hub Fac Was Fac Upp Upp Zhi Pro Fac Arm Lab Res Total 33289 | 10 963 2129 2025 1176 3131 101 2173 1107 1494 1550 584 2026 400 1368 1319 586 243 1205 2089 224 1398 720 651 179 502 2126 1345 285 180 Wait 4063 | . 71 89 48 234 519 . 531 5 107 1 18 537 133 113 199 243 38 30 128 7 138 66 11 3 39 644 57 40 14 Move 26628 | 10 770 1781 1745 748 2451 99 1533 1086 1349 1535 551 1377 249 1197 966 315 162 907 1846 206 1173 636 603 162 445 1324 1047 211 144 Hop 71 | . . . . . 6 . 4 . . . . . . 3 3 . . 24 12 3 1 . . . . 5 10 . . Pick Up 119 | . 10 27 27 6 6 1 4 . . 2 . 4 2 2 2 . . 1 2 1 3 . 1 2 1 10 1 3 1 Fast Attach 120 | . 6 8 12 4 4 . 4 . . . 1 5 . 1 5 . 1 2 11 6 9 2 3 2 2 17 7 8 . Attach 58 | . 1 3 14 2 11 . 1 . . . 1 . . 2 2 . . . 1 1 4 1 . . 1 5 2 1 5 Detach 11 | . . . . . 1 . . . . . . 1 . 1 . . . . . . 3 1 . . 1 3 . . . Swap 277 | . 7 35 25 23 25 . 7 1 5 10 4 17 4 10 10 6 6 12 16 . 9 . 10 7 1 13 14 . . Drop 160 | . 13 24 23 13 30 1 3 . . 2 . 5 2 3 1 . 1 2 4 . 6 . 1 3 2 8 8 5 . Fire 1053 | . 77 158 120 117 11 . . 15 22 . 8 3 10 4 44 22 12 196 29 . 19 . 10 . 2 60 93 17 4 Melee 386 | . . . . . 54 . 41 . 11 . 1 53 . 27 24 . 23 13 34 . 33 14 12 . 8 37 1 . . Ram 7 | . . . . . . . . . . . . . . . . . . . . . . . . . . . . . 7 Kick 8 | . 8 . . . . . . . . . . . . . . . . . . . . . . . . . . . . Crush 26 | . . 4 11 11 . . . . . . . . . . . . . . . . . . . . . . . . . Escape Stasis 103 | . . . . 2 13 . 45 . . . . . . 5 32 . . . 6 . . . . . . . . . . Rewire 110 | . . . . . . . . . . . . . . . . . . . . . . . . . . . 105 . 5 Trap 73 | . . . . . . . . . . . . 24 . . 31 . . 18 . . . . . . . . . . . Miscellaneous 16 | . . . . 16 . . . . . . . . . . . . . . . . . . . . . . . . . Route ------- -11/Scrapyard -10/Materials (discovered 5 exits: *Mat x2 / [*Min x2] / [*Sub]) -9/Materials (discovered 5 exits: *Mat x3 / *Min x2) -8/Materials (discovered 5 exits: *Fac x3 / *Sto x2) -8/Storage -7/Factory (discovered 3 exits: *Fac / Low x2) -7/Waste -7/Factory (discovered 3 exits: *Fac / *Low x2) -7/Lower Caves -7/Lower Caves (discovered 2 exits: *Fac / *Zio) -7/Zion (discovered 2 exits: Dee / *Pro) -6/Proximity Caves -6/Factory (discovered 5 exits: *Fac / Low x2 / Ext x2) -6/Waste -6/Factory (discovered 5 exits: *Fac / Low x2 / *Ext x2) -6/Extension (discovered 2 exits: *Fac / *Cet) -6/Cetus (discovered 2 exits: *Fac / *Arc) -6/Archives (discovered 2 exits: *Fac / *Hub) -6/Hub_04(d) (discovered 2 exits: *Fac x2) -5/Factory (discovered 6 exits: *Fac x4 / Upp x2) -5/Waste -5/Factory (discovered 2 exits: *Upp x2) -5/Upper Caves -5/Upper Caves (discovered 2 exits: *Fac / *Zhi) -5/Zhirov -4/Proximity Caves -4/Factory (discovered 4 exits: *Res x2 / *Upp / *Arm) -4/Armory -4/Lab -3/Research History --------- Turn | Location | Event 1 | -11/Scrapyard | Discovered new exit (range 3) 13 | -11/Scrapyard | Entered Materials 311 | -10/Materials | Build established: Mutant 428 | -10/Materials | Discovered new exit (range 7) 543 | -10/Materials | Discovered new exit (range 15) 713 | -10/Materials | Derelicts attacked the area 726 | -10/Materials | Discovered new exit (range 9) 780 | -10/Materials | Repaired Med. Laser 901 | -10/Materials | Discovered new exit (range 8) 931 | -10/Materials | Discovered new exit (range 10) 965 | -10/Materials | Core integrity fell below 50% 1319 | -10/Materials | Core integrity fell below 20% 1320 | -10/Materials | Entered another Materials area 1320 | -9/Materials | Evolved 2 slots: Utility x2 1703 | -9/Materials | Build established: Scavenger-Mutant 1916 | -9/Materials | Discovered new exit (range 3) 2055 | -9/Materials | Identified exit to Mines 2403 | -9/Materials | Discovered new exit (range 16) 3791 | -9/Materials | Core integrity fell below 50% 4293 | -9/Materials | Discovered new exit (range 12) 4431 | -9/Materials | Repaired Imp. Assault Rifle 4883 | -9/Materials | Build established: Mutant 5991 | -9/Materials | Central database locked down 6426 | -9/Materials | Entered another Materials area 6426 | -8/Materials | Evolved 2 slots: Propulsion x1, Utility x1 6932 | -8/Materials | Lost 3 parts (1n1u1w) 7025 | -8/Materials | Build established: Scavenger-Mutant 7534 | -8/Materials | Discovered new exit (range 15) 7571 | -8/Materials | Core integrity fell below 50% 7618 | -8/Materials | Lost 9 parts (4n2u3w) 7659 | -8/Materials | Discovered new exit (range 8) 8362 | -8/Materials | Learned location of Storage (-8) 8403 | -8/Materials | Learned location of 1 exit from Recycling 8433 | -8/Materials | Learned 2 Lower Caves zone layouts 8452 | -8/Materials | Identified exit to Factory 8461 | -8/Materials | Learned location of Extension (-6) 8463 | -8/Materials | Identified exit to Storage 8464 | -8/Materials | Learned location of Zion (-7) 8474 | -8/Materials | Learned location of Lower Caves (-7) 8528 | -8/Materials | Learned location of Lower Caves (-7) 9218 | -8/Materials | Repaired Imp. Ion Engine+ 11043 | -8/Materials | Entered Storage 11125 | -8/Storage | Garrison activated, responded to threat 11196 | -8/Storage | Destroyed 8 combat bots 11492 | -8/Storage | Destroyed 9 combat bots 11631 | -8/Storage | Repaired Hrd. Medium Armor Plating 11703 | -8/Storage | Repaired Cld. Particle Cannon 11775 | -8/Storage | Repaired Cld. Particle Cannon 11838 | -8/Storage | Repaired Arm. Treads 12158 | -8/Storage | Core integrity fell below 20% 12628 | -8/Storage | Met 01-MTF 13043 | -8/Storage | First assault squad dispatched 13484 | -8/Storage | Entered Factory 13484 | -7/Factory | Accompanied by 1 ally (01-MTF) 13484 | -7/Factory | Evolved 2 slots: Propulsion x1, Utility x1 13485 | -7/Factory | Identified exit to Factory 13487 | -7/Factory | 01-MTF left 14003 | -7/Factory | Build established: Hacker-Sprinter 14186 | -7/Factory | Fabricated Imp. VTOL Module? 14307 | -7/Factory | Identified exit to Lower Caves 14511 | -7/Factory | Fabricated Imp. VTOL Module (x1) 14572 | -7/Factory | Fabricated Imp. VTOL Module? 14949 | -7/Factory | Manually triggered Chute Trap 14949 | -7/Factory | Sucked down chute 14949 | -7/Factory | Entered Waste 14950 | -7/Waste | Met a frightened Derelict 14952 | -7/Waste | Spotted C-40 Crusher 14952 | -7/Waste | Spotted C-40 Crusher 14964 | -7/Waste | EMP discharged 14965 | -7/Waste | Spotted C-40 Crusher 14967 | -7/Waste | Spotted C-40 Crusher 14970 | -7/Waste | Discovered new exit (range 16) 14970 | -7/Waste | Spotted C-40 Crusher 14976 | -7/Waste | Identified exit to Factory 14977 | -7/Waste | Entered Factory 15030 | -7/Factory | Repaired Broken Hyp. Gauss Cannon 15092 | -7/Factory | Repaired Imp. Sensor Array 15182 | -7/Factory | Repaired Imp. VTOL Module 15535 | -7/Factory | Fabricated Cld. Particle Cannon (x1) 15957 | -7/Factory | Discovered exit to Factory (range 10) 16081 | -7/Factory | Entered Lower Caves 16088 | -7/Lower Caves | Encountered a Warlord checkpoint 16212 | -7/Lower Caves | Discovered new exit (range 3) 16214 | -7/Lower Caves | Identified exit to Lower Caves 16400 | -7/Lower Caves | Entered another Lower Caves area 16414 | -7/Lower Caves | Discovered exit to Factory (range 9) 16456 | -7/Lower Caves | Encountered a Warlord checkpoint 16540 | -7/Lower Caves | Identified exit to Zion 16731 | -7/Lower Caves | Learned Factory trap positions 16752 | -7/Lower Caves | Found DCF Scrap (12 items) 16907 | -7/Lower Caves | Entered a destroyed Warlord outpost 16937 | -7/Lower Caves | Entered Zion 16948 | -7/Zion | Received a hallucinogenic algorithm 16948 | -7/Zion | Ran a hallucination algorithm 16963 | -7/Zion | Discovered new exit (range 16) 16988 | -7/Zion | System corruption cleaned by Quarantine Array 16991 | -7/Zion | Learned Factory emergency access door positions 17007 | -7/Zion | Acquired unknown access codes intercepted by a Zionite 17027 | -7/Zion | Identified exit to Deep Caves 17297 | -7/Zion | Found Prototype Processor 17297 | -7/Zion | Identified Exp. Melee Analysis Suite 17299 | -7/Zion | Found Prototype Processor 17299 | -7/Zion | Identified Exp. Terrain Scan Processor 17302 | -7/Zion | Found Prototype Processor 17302 | -7/Zion | Identified Exp. Armor Integrity Analyzer 17304 | -7/Zion | Found Prototype Processor 17304 | -7/Zion | Identified Exp. Target Analyzer 17306 | -7/Zion | Found Prototype Processor 17306 | -7/Zion | Identified Exp. Targeting Computer 17308 | -7/Zion | Found Prototype Hackware 17308 | -7/Zion | Identified Exp. System Shield 17312 | -7/Zion | Found Faulty Exp. Terrain Scan Processor 17355 | -7/Zion | Identified exit to Proximity Caves 17356 | -7/Zion | Entered Proximity Caves 17361 | -6/Proximity Caves | Attracted the attention of an 0b10 checkpoint 17518 | -6/Proximity Caves | Discovered exit to Factory (range 7) 17546 | -6/Proximity Caves | Entered Factory 17546 | -6/Factory | Evolved 2 slots: Utility x2 17547 | -6/Factory | Identified exit to Lower Caves 17548 | -6/Factory | Loaded intel: 113 trap records 17642 | -6/Factory | Garrison activated, responded to threat 17938 | -6/Factory | Repaired Cold Fusion Reactor 18038 | -6/Factory | Repaired Imp. VTOL Module 18112 | -6/Factory | Unchained authorized (CL-0N3) 18283 | -6/Factory | Identified exit to Extension 18356 | -6/Factory | Spotted B-75 Beast 18432 | -6/Factory | Discovered new exit (range 15) 18437 | -6/Factory | Identified exit to Factory 18486 | -6/Factory | Repaired Hyp. Gauss Cannon 18503 | -6/Factory | Repaired Mni. Grenade Launcher+ 18632 | -6/Factory | Fabricated Cold Fusion Reactor (x1) 18671 | -6/Factory | Manually triggered Chute Trap 18671 | -6/Factory | Sucked down chute 18671 | -6/Factory | Entered Waste 18672 | -6/Waste | Met a frightened Derelict 18686 | -6/Waste | Spotted C-40 Crusher 18694 | -6/Waste | Warlord forces began an assault 18696 | -6/Waste | Spotted C-40 Crusher 18696 | -6/Waste | Spotted C-40 Crusher 18705 | -6/Waste | Spotted C-40 Crusher 18707 | -6/Waste | Allies destroyed C-40 Crusher 18708 | -6/Waste | Spotted C-40 Crusher 18711 | -6/Waste | Allies destroyed C-40 Crusher 18714 | -6/Waste | Allies destroyed C-40 Crusher 18723 | -6/Waste | Allies destroyed C-40 Crusher 18723 | -6/Waste | Spotted C-40 Crusher 18733 | -6/Waste | Destroyed C-40 Crusher 18745 | -6/Waste | Lost 3 allies 18842 | -6/Waste | Discovered new exit (range 13) 18868 | -6/Waste | Identified exit to Factory 18906 | -6/Waste | Entered Factory 18906 | -6/Factory | Accompanied by 16 allies 19007 | -6/Factory | Discovered exit to Factory (range 15) 19106 | -6/Factory | Unchained authorized (CL-0N3) 19198 | -6/Factory | Fabricated Biomechanical Wings (x1) 19417 | -6/Factory | U-05 Engineer reconstituted as D-63 Destroyer 19444 | -6/Factory | Spotted B-75 Beast 19461 | -6/Factory | Lost 8 allies 19481 | -6/Factory | Entered Extension 19573 | -6/Extension | Rescued a captive Derelict 19575 | -6/Extension | Rescued a captive Derelict 19638 | -6/Extension | Rescued a captive Derelict 19685 | -6/Extension | Rescued a captive Derelict 19686 | -6/Extension | Rescued a captive Derelict 19712 | -6/Extension | Lost 3 allies 19855 | -6/Extension | Lost 3 parts (1p2u) 19893 | -6/Extension | Rescued a captive Derelict 19964 | -6/Extension | Rescued a captive Derelict 19966 | -6/Extension | Rescued a captive Derelict 19968 | -6/Extension | Rescued a captive Derelict 19973 | -6/Extension | Rescued a captive Derelict 19992 | -6/Extension | Rescued A7 20060 | -6/Extension | Discovered exit to Factory (range 10) 20060 | -6/Extension | Discovered new exit (range 6) 20067 | -6/Extension | Identified exit to Cetus 20179 | -6/Extension | Entered Cetus 20179 | -6/Cetus | Accompanied by 10 allies (A7) 20183 | -6/Cetus | Spotted Cetus Guard 20183 | -6/Cetus | Spotted Cetus Guard 20184 | -6/Cetus | Acquired a Cetus Manufacturing Module code from A7 20186 | -6/Cetus | Destroyed Cetus Guard 20196 | -6/Cetus | Spotted Cetus Guard 20197 | -6/Cetus | Destroyed Cetus Guard 20203 | -6/Cetus | Allies destroyed Cetus Guard 20203 | -6/Cetus | Spotted Cetus Guard 20206 | -6/Cetus | Destroyed Cetus Guard 20234 | -6/Cetus | Started Cetus Manufacturing Module 20259 | -6/Cetus | Manufactured an Enhanced Grunt 20284 | -6/Cetus | Manufactured an Enhanced Grunt 20309 | -6/Cetus | Manufactured an Enhanced Grunt 20334 | -6/Cetus | Manufactured an Enhanced Grunt 20359 | -6/Cetus | Manufactured an Enhanced Grunt 20389 | -6/Cetus | Discovered new exit (range 16) 20395 | -6/Cetus | Spotted Cetus Guard 20396 | -6/Cetus | Spotted Cetus Guard 20406 | -6/Cetus | Spotted Cetus Guard 20411 | -6/Cetus | Destroyed Cetus Guard 20414 | -6/Cetus | Destroyed Cetus Guard 20433 | -6/Cetus | Discovered exit to Factory (range 15) 20435 | -6/Cetus | Met Revision 17 20471 | -6/Cetus | Identified exit to Archives 20567 | -6/Cetus | Entered Archives 20567 | -6/Archives | Accompanied by 14 allies (A7) 20602 | -6/Archives | Discovered exit to Factory (range 17) 20612 | -6/Archives | Discovered new exit (range 14) 20627 | -6/Archives | Build established: Commander-Sprinter 20700 | -6/Archives | Unable to access archive contents 20703 | -6/Archives | Unable to access archive contents 20703 | -6/Archives | Ran a hallucination algorithm 20708 | -6/Archives | Identified exit to Hub_04(d) 20746 | -6/Archives | Entered Hub_04(d) 20746 | -6/Hub_04(d) | Accompanied by 12 allies 20786 | -6/Hub_04(d) | Garrison activated, responded to threat 20849 | -6/Hub_04(d) | Lost 3 allies 20950 | -6/Hub_04(d) | Discovered exit to Factory (range 7) 20962 | -6/Hub_04(d) | Build established: Wizard-Sprinter 21219 | -6/Hub_04(d) | Discovered exit to Factory (range 12) 21335 | -6/Hub_04(d) | Network Hub disabled 21465 | -6/Hub_04(d) | Build established: Hacker-Sprinter 21524 | -6/Hub_04(d) | Entered Factory 21524 | -5/Factory | Evolved 2 slots: Propulsion x1, Utility x1 21525 | -5/Factory | Identified exit to Upper Caves 21601 | -5/Factory | Fabricated Lgt. Quantum Reactor? 21729 | -5/Factory | Fabricated Imp. VTOL Module (x1) 21790 | -5/Factory | Fabricated Exp. Terrain Scan Processor? 21822 | -5/Factory | Spotted B-75 Beast 21827 | -5/Factory | Build established: Wizard-Sprinter 21837 | -5/Factory | Identified exit to Factory 22014 | -5/Factory | Repaired Adv. Weight Redist. System 22124 | -5/Factory | Search patrols dispatched 22330 | -5/Factory | Build established: Hacker-Sprinter 22340 | -5/Factory | Manually triggered Chute Trap 22340 | -5/Factory | Sucked down chute 22340 | -5/Factory | Entered Waste 22340 | -5/Waste | Met up with 1 ally sucked down the chute earlier 22348 | -5/Waste | Spotted C-40 Crusher 22349 | -5/Waste | Spotted C-40 Crusher 22349 | -5/Waste | Spotted C-40 Crusher 22350 | -5/Waste | Spotted C-40 Crusher 22351 | -5/Waste | Spotted C-40 Crusher 22354 | -5/Waste | Crushed by Compactor (1 part destroyed, 2 dropped) 22355 | -5/Waste | EMP discharged 22357 | -5/Waste | System corruption reached 10% 22357 | -5/Waste | Crushed by Compactor (1 part destroyed, 1 dropped) 22359 | -5/Waste | Crushed by Compactor (1 part destroyed, 2 dropped) 22367 | -5/Waste | Spotted C-40 Crusher 22390 | -5/Waste | Lost 5 parts (1p2n1u1w) 22408 | -5/Waste | Found Adv. Force Booster 22421 | -5/Waste | Discovered new exit (range 12) 22424 | -5/Waste | Found Corrupted Fusion Bomb Launcher 22426 | -5/Waste | Identified exit to Factory 22426 | -5/Waste | Entered Factory 23026 | -5/Factory | Search patrols dispatched 23065 | -5/Factory | Entered Upper Caves 23204 | -5/Upper Caves | Build established: Sprinter 23254 | -5/Upper Caves | Attracted the attention of an 0b10 checkpoint 23290 | -5/Upper Caves | Learned location of 1 exit from Factory 23304 | -5/Upper Caves | Spotted B-75 Beast 23307 | -5/Upper Caves | Lost 4 parts (1n3u) 23363 | -5/Upper Caves | Discovered new exit (range 9) 23365 | -5/Upper Caves | Identified exit to Upper Caves 23374 | -5/Upper Caves | Entered another Upper Caves area 23386 | -5/Upper Caves | Discovered exit to Factory (range 10) 23469 | -5/Upper Caves | Encountered a Warlord checkpoint 23634 | -5/Upper Caves | Discovered new exit (range 8) 23636 | -5/Upper Caves | Identified exit to Zhirov 23637 | -5/Upper Caves | Entered Zhirov 23637 | -5/Zhirov | Discovered new exit (range 3) 23643 | -5/Zhirov | Met Zhirov 23649 | -5/Zhirov | Learned location of Quarantine (-3) 23649 | -5/Zhirov | Learned location of Testing (-2) 23649 | -5/Zhirov | Learned location of Command (-1) 23654 | -5/Zhirov | Zhirov requested help retrieving the SGEMP Prototype 23660 | -5/Zhirov | Found Alien Artifact 23660 | -5/Zhirov | Identified Integrated Dissipator 23660 | -5/Zhirov | Installed Integrated Dissipator, increased core heat dissipation (+20) 23692 | -5/Zhirov | Found Alien Artifact 23704 | -5/Zhirov | Identified exit to Proximity Caves 23706 | -5/Zhirov | Entered Proximity Caves 23756 | -4/Proximity Caves | Attracted the attention of an 0b10 checkpoint 23899 | -4/Proximity Caves | Learned Research garrison access intel 23911 | -4/Proximity Caves | Discovered exit to Factory (range 5) 23918 | -4/Proximity Caves | Entered Factory 23918 | -4/Factory | Evolved 2 slots: Propulsion x2 23919 | -4/Factory | Identified exit to Research 24113 | -4/Factory | Repaired Broken Biomechanical Wings 24152 | -4/Factory | Build established: Hacker-Mutant 24276 | -4/Factory | Lost 3 allies 24323 | -4/Factory | Discovered new exit (range 6) 24325 | -4/Factory | Identified exit to Upper Caves 24868 | -4/Factory | Repaired Hyp. Gauss Cannon+ 24931 | -4/Factory | Repaired Lgt. Antimatter Reactor 24983 | -4/Factory | Repaired Adv. Sensor Array 25040 | -4/Factory | Repaired Mic. Fission Core 25096 | -4/Factory | Repaired Enh. Gauss Cannon 25192 | -4/Factory | Repaired Corrupted Fusion Bomb Launcher 25196 | -4/Factory | Spotted B-86 Titan 25306 | -4/Factory | Repaired Kinetic Spear 25335 | -4/Factory | Repaired Imp. Transmission Jammer 25364 | -4/Factory | Identified Transdimensional Reconstructor 25389 | -4/Factory | Discovered new exit (range 12) 25409 | -4/Factory | Discovered exit to Research (range 3) 25410 | -4/Factory | Unchained authorized (6S-H0T) 25472 | -4/Factory | Identified exit to Armory 25473 | -4/Factory | Entered Armory 25495 | -4/Armory | Found Unknown Device 25495 | -4/Armory | Identified Quantum Capacitor 25778 | -4/Armory | Core integrity fell below 50% 25911 | -4/Armory | Assisted by bots powering up and referring to "LRC-V3" 25919 | -4/Armory | Fabricated B-60 Warrior? 25972 | -4/Armory | High security lockdown imminent 26046 | -4/Armory | Spotted B-86 Titan 26052 | -4/Armory | High security lockdown engaged 26080 | -4/Armory | Allies destroyed B-86 Titan 26104 | -4/Armory | Fabricated B-60 Warrior? 26137 | -4/Armory | Lost 9 allies 26189 | -4/Armory | System corruption reached 10% 26197 | -4/Armory | Warped through subspace to slip node 26197 | -4/Armory | Discovered new exit (range 1) 26197 | -4/Armory | Identified exit to Lab 26198 | -4/Armory | Entered Lab 26198 | -4/Lab | Discovered exit to Research (range 9) 26202 | -4/Lab | Unable to decrypt terminal 26202 | -4/Lab | Opened the door to a hidden lab 26203 | -4/Lab | Gained access to the hidden lab's interior 26218 | -4/Lab | Lost 4 allies 26226 | -4/Lab | Detected by scanners 26226 | -4/Lab | Unable to decrypt terminal 26228 | -4/Lab | Lost 5 parts (1n3u1w) 26228 | -4/Lab | Found Alien Artifact 26228 | -4/Lab | Identified Core Reset Matrix 26228 | -4/Lab | Used Core Reset Matrix 26232 | -4/Lab | Sensed 3 artifacts in vicinity 26235 | -4/Lab | Confronted by A5 26237 | -4/Lab | Found Transdimensional Reconstructor 26243 | -4/Lab | Found Core Expander 26243 | -4/Lab | Installed Core Expander, added new Weapon slot 26249 | -4/Lab | Found Integrated Dissipator 26249 | -4/Lab | Installed Integrated Dissipator, increased core heat dissipation (+20) 26267 | -4/Lab | Found Prototype Hackware 26267 | -4/Lab | Identified Quantum Router 26270 | -4/Lab | Found Prototype Protection 26270 | -4/Lab | Identified Exp. Powered Armor 26272 | -4/Lab | Found Prototype Energy Cannon 26272 | -4/Lab | Identified Warp Cannon 26274 | -4/Lab | Found Prototype Energy Gun 26274 | -4/Lab | Identified Hyp. EM Gauss Rifle 26363 | -4/Lab | Discovered exit to Research (range 7) 26366 | -4/Lab | Entered Research 26366 | -3/Research | Evolved 2 slots: Propulsion x1, Utility x1 26384 | -3/Research | Lost 5 parts (1p3n1w) 26439 | -3/Research | Warped through subspace 26507 | -3/Research | Self-destructed Last Messages --------------- 26499_ Slug penetrates Wall. 26499_ Penetrated by Slug. 26499_ Attempting to rewire H-77 Assassin. 26500_ R-10 Processor collects Unknown Device. 26500_ Attempting to rewire H-77 Assassin. 26501_ H-77 Assassin rewired. 26501_ Penetrated by Slug. 26501_ Slug penetrates Wall. 26501_ Adv. Weight Redist. System destroyed. 26502_ Wall collapses. 26502_ Slug penetrates Assassin 8a. 26502_ Slug penetrates Wall. 26502_ Slug penetrates H-77 Assassin. 26502_ U-05 Engineer destroyed. 26504_ R-10 Processor collects Unknown Protection. 26504_ Slammed into R-10 Processor. 26504_ Slug penetrates Assassin 8a. 26505_ K-01 Serf collects debris. 26505_ Slug penetrates Assassin 8a. 26505_ Slug penetrates H-77 Assassin. Map ----- +----------------------------------------------------+ | ????????? #???????########### #?????????????? | | ????????# #?????????????????# #?????????????? | | ????????# #?????????????????+ ?????????????? | | ????????# #?????????????????# ????????????? | | ????????# #?????????????????? ???????????? | | ????????# #?????????????????? ???????????? | | ????????# #??????????????????### ### ??????????? | | ????????# #????????????????????? #?? ?????????? | | ????????# #????????????????????? #?????????????? | | ????????# #????????????????????????????????????? | | ????????# #????????????????????????????????????? | | ????????# #????????????????????????????????????? | | ????????# ####+###?????????????????????????????? | | ????????# ## #?????????????????????????????? | | ????????# T" #######???????????????????????? | | ????????# "" ??????????????????????? | | ????????# =#?????????????????????????????? | | ????????###### #?#########+#?????????????????? | | ?????????????### ###?# #?????????????????? | | ???????????????# #???# ! #? ??????????????? | | ????????????#### #####*| # ??????????????? | | ????????????# *%hw= + ??????????????? | | ????????????# ##+####;= k"Y" #?????????????????? | | ????????????#?# ##hh " #?????????????????? | | ??????????????# ## R #?????????????????? | | ??????????????# ##= ]@gY #?????????????????? | | ??????????????# ### ########?????????????????? | | ??????????????# #?###????????????????????????? | | ??????????????#######????????????????????????????? | | ?????????????????????????????????????????????????? | | ?????????????????????????????????????????????????? | | ?????????????????????????????????????????????????? | | ?????????????????????????????????????????????????? | | ?????????????????????????????????????????????????? | | ?????????????????????????????????????????????????? | | ?????????????????????????????????????????????????? | | ?????????????????????????????????????????????????? | | ?????????????????????????????????????????????????? | | ?????????????????????????????????????????????????? | | ?????????????????????????????????????????????????? | | ?????????????????????????????????????????????????? | | ?????????????????????????????????????????????????? | | ?????????????????????????????????????????????????? | | ?????????????????????????????????????????????????? | | ?????????????????????????????????????????????????? | | ?????????????????????????????????????????????????? | | ?????????????????????????????????????????????????? | | ?????????????????????????????????????????????????? | | ?????????????????????????????????????????????????? | | ?????????????????????????????????????????????????? | +----------------------------------------------------+ Best States ------------- Heat Dissipation 86 Coolant Potential 120 Energy Generation 25 Energy Capacity 500 Matter Stores 300 Matter Capacity 300 Sight Range 20 Robot Scan Range 16 Terrain Scan Range 20 Terrain Scan Density 1010 Jamming Range 16 Additional Mass Support 9 Corruption Containment 12 Corruption Block 13 Armor Coverage 450 Resistance: TH 10 Phase Shifting 5 Evasion (%) 76 Targeting Accuracy 10 Target Analysis 6 Recoil Reduction 6 Matter Filtering 50 Force Boost 40 Salvage Targeting 3 Offensive Hacking 48 Defensive Hacking 27 Authchip Count 1 Item Schematics ----------------- None Robot Schematics ------------------ None Fabricated ------------ Imp. VTOL Module | x1 | -7/Factory | Authchip Imp. VTOL Module | x1 | -7/Factory | Authchip Imp. VTOL Module | x1 | -7/Factory Cld. Particle Cannon | x1 | -7/Factory | Authchip Cold Fusion Reactor | x1 | -6/Factory Biomechanical Wings | x1 | -6/Factory | Authchip Lgt. Quantum Reactor | x2 | -5/Factory | Preloaded Imp. VTOL Module | x1 | -5/Factory | Authchip Exp. Terrain Scan Processor | x1 | -5/Factory B-60 Warrior | x3 | -4/Armory B-60 Warrior | x3 | -4/Armory Repaired ---------- Med. Laser | 20% | -10/Materials Imp. Assault Rifle | 11% | -9/Materials Imp. Ion Engine | 12% | -8/Materials Hrd. Medium Armor Plating | 15% | -8/Storage Cld. Particle Cannon | 23% | -8/Storage Cld. Particle Cannon | 65% | -8/Storage Arm. Treads | 21% | -8/Storage Hyp. Gauss Cannon | 9% | -7/Factory | Broken Imp. Sensor Array | 9% | -7/Factory Imp. VTOL Module | 38% | -7/Factory Cold Fusion Reactor | 66% | -6/Factory Imp. VTOL Module | 42% | -6/Factory Hyp. Gauss Cannon | 73% | -6/Factory Mni. Grenade Launcher | 68% | -6/Factory Adv. Weight Redist. System | 12% | -5/Factory Biomechanical Wings | 20% | -4/Factory | Broken Hyp. Gauss Cannon | 24% | -4/Factory Lgt. Antimatter Reactor | 52% | -4/Factory Adv. Sensor Array | 12% | -4/Factory Mic. Fission Core | 45% | -4/Factory Enh. Gauss Cannon | 7% | -4/Factory Fusion Bomb Launcher | 12% | -4/Factory | Corrupted Kinetic Spear | 26% | -4/Factory Imp. Transmission Jammer | 44% | -4/Factory Studied --------- None Alien Tech Used ----------------- Integrated Dissipator Transdimensional Reconstructor Core Reset Matrix Core Expander Achievements -------------- None Challenges ------------ None Game ------ Seed TacticalDrainedMatrix Manual? 0 Play Time 05:07:05 Cumulative 262.2 hours Start 2026.01.03 @ 10:47:24 End 2026.01.04 @ 18:49:32 Sessions 5 Manual Loads 0 Difficulty Rogue Special Mode None Game No. 334 Rogue 333 Adventurer 1 Explorer 0 Win Type - Total 2 Types 1/0/0/1/0/0/0/0/0/0 Lore% 73 Gallery% 66 Achievement% 55 Wizard Run 0 Options --------- Layout 0 ASCII 0 Keyboard 0 Movement Numpad Keybinds 0 Fullscreen 1 Font 24/Smallcaps Map View 76x50 Zoom Use 0% Tactical HUD 1 Map Filters NONE Filters NONE Steam 1 RUN: ed51ffcd-ac1a-4d4a-a8c3-81d63b39ee07